Department Family,Entity,Date Paid,Expense Type,Expense Area,Supplier,Transaction Number,Amount (�),Supplier VAT Registration Number
BEIS,Met Office,2024-03-12,11 SERVICES,PROGRAMMES,4 C ASSOCIATES,489795,43050,GB 152 6884 87
BEIS,Met Office,2024-03-12,11 SERVICES,PROGRAMMES,4 C ASSOCIATES,489795,828.72,GB 152 6884 87
BEIS,Met Office,2024-03-08,06 ACCOMMODATION,SCIENCE,A K AVIATION (SERVICES) LTD,424904,95,563733234
BEIS,Met Office,2024-03-08,06 ACCOMMODATION,SCIENCE,A K AVIATION (SERVICES) LTD,489406,-95,563733234
BEIS,Met Office,2024-03-07,13 MISCELLANEOUS,SCIENCE,AB MULTIMEDIA LTD,489573,520,849333502
BEIS,Met Office,2024-03-05,06 ACCOMMODATION,CHIEF FINANCIAL OFFICER,ABOVE THE REST COMMERCIAL CLEANING LTD,489356,394,166969348
BEIS,Met Office,2024-03-05,06 ACCOMMODATION,CHIEF FINANCIAL OFFICER,ABOVE THE REST COMMERCIAL CLEANING LTD,489356,171,166969348
BEIS,Met Office,2024-03-04,07 EQUIPMENT,TECHNOLOGY AND CIO,ACADEMIA,488907,88470,135 5768 90
BEIS,Met Office,2024-03-12,11 SERVICES,MARKETS,ACCELERATION EMARKETING,489761,3583.62,848940776
BEIS,Met Office,2024-03-06,PAYE AND VAT,OTHER,ACTIVE LEARNING TEAM LTD,489495,4872.16,GB454401319
BEIS,Met Office,2024-03-18,11 SERVICES,PEOPLE,ACTIVE LEARNING TEAM LTD,490043,1587.93,GB454401319
BEIS,Met Office,2024-03-18,11 SERVICES,PEOPLE,ACTIVE LEARNING TEAM LTD,490044,1400,GB454401319
BEIS,Met Office,2024-03-13,11 SERVICES,CHIEF FINANCIAL OFFICER,ACTIVE PEST MANAGEMENT,489711,86.1,791419116
BEIS,Met Office,2024-03-13,11 SERVICES,CHIEF FINANCIAL OFFICER,ADAM PHONES LTD,489643,145,538877093
BEIS,Met Office,2024-03-28,11 SERVICES,OFFICE OF THE CEO,ADDLESHAW GODDARD LLP,490566,5001.6,100135687
BEIS,Met Office,2024-03-05,11 SERVICES,MARKETS,ADOPSTAR,489416,1325,115036848
BEIS,Met Office,2024-03-19,08 SOFTWARE LICENCES,CHIEF FINANCIAL OFFICER,ADVANCED BUSINESS SOFTWARE AND,489167,65269.21,927547983
BEIS,Met Office,2024-03-19,08 SOFTWARE LICENCES,CHIEF FINANCIAL OFFICER,ADVANCED BUSINESS SOFTWARE AND,489374,-998.3,927547983
BEIS,Met Office,2024-03-27,08 SOFTWARE LICENCES,CHIEF FINANCIAL OFFICER,ADVANCED BUSINESS SOFTWARE AND,490551,24500,927547983
BEIS,Met Office,2024-03-06,11 SERVICES,TECHNOLOGY AND CIO,AKAMAI TECHNOLOGIES LTD,489487,4937.28,745091237
BEIS,Met Office,2024-03-06,11 SERVICES,TECHNOLOGY AND CIO,AKAMAI TECHNOLOGIES LTD,489487,25920.75,745091237
BEIS,Met Office,2024-03-06,11 SERVICES,CHIEF FINANCIAL OFFICER,ALLSTAR BUSINESS SOLUTIONS LTD,489518,2338.64,747880191
BEIS,Met Office,2024-03-18,11 SERVICES,CHIEF FINANCIAL OFFICER,ALLSTAR BUSINESS SOLUTIONS LTD,490088,3302.77,747880191
BEIS,Met Office,2024-03-06,11 SERVICES,TECHNOLOGY AND CIO,AMAZON WEB SERVICES EMEA SARL,11401,290058.82,GB 283644382
BEIS,Met Office,2024-03-06,11 SERVICES,TECHNOLOGY AND CIO,AMAZON WEB SERVICES EMEA SARL,11402,437.11,GB 283644382
BEIS,Met Office,2024-03-06,11 SERVICES,TECHNOLOGY AND CIO,AMAZON WEB SERVICES EMEA SARL,11403,1261.26,GB 283644382
BEIS,Met Office,2024-03-06,11 SERVICES,TECHNOLOGY AND CIO,AMAZON WEB SERVICES EMEA SARL,11413,-4520.31,GB 283644382
BEIS,Met Office,2024-03-13,11 SERVICES,CHIEF FINANCIAL OFFICER,ANVIL MOBILE LIMITED,489687,82.6,981686175
BEIS,Met Office,2024-03-14,03 STAFF COSTS T&S,CHIEF FINANCIAL OFFICER,APPLE CENTRAL TAXIS,489935,1165,449238720
BEIS,Met Office,2024-03-06,11 SERVICES,SERVICES,APPLIED SATELLITE TECHNOLOGY SYSTEMS LTD,489498,33.42,720108683
BEIS,Met Office,2024-03-06,11 SERVICES,SERVICES,APPLIED SATELLITE TECHNOLOGY SYSTEMS LTD,489499,106.9,720108683
BEIS,Met Office,2024-03-06,12 INTERNATIONAL,MARKETS,APPLIED SATELLITE TECHNOLOGY SYSTEMS LTD,489500,33.42,720108683
BEIS,Met Office,2024-03-06,11 SERVICES,SERVICES,APPLIED SATELLITE TECHNOLOGY SYSTEMS LTD,489501,66.83,720108683
BEIS,Met Office,2024-03-18,11 SERVICES,TECHNOLOGY AND CIO,ARDOQ UK LIMITED,490073,1087.5,GB 307689963
BEIS,Met Office,2024-03-22,13 MISCELLANEOUS,CHIEF FINANCIAL OFFICER,ARTHUR J. GALLAGHER INSURANCE BROKERS LIMITED,482872,194575.92,GB484746209
BEIS,Met Office,2024-03-22,13 MISCELLANEOUS,CHIEF FINANCIAL OFFICER,ARTHUR J. GALLAGHER INSURANCE BROKERS LIMITED,488138,-13793.62,GB484746209
BEIS,Met Office,2024-03-22,13 MISCELLANEOUS,SCIENCE,ARTHUR J. GALLAGHER INSURANCE BROKERS LIMITED,490093,2500,GB484746209
BEIS,Met Office,2024-03-22,13 MISCELLANEOUS,CHIEF FINANCIAL OFFICER,ARTHUR J. GALLAGHER INSURANCE BROKERS LIMITED,490112,-217925.03,GB484746209
BEIS,Met Office,2024-03-22,13 MISCELLANEOUS,CHIEF FINANCIAL OFFICER,ARTHUR J. GALLAGHER INSURANCE BROKERS LIMITED,490193,1248.14,GB484746209
BEIS,Met Office,2024-03-06,13 MISCELLANEOUS,MARKETS,ASAM E.V.,25607,85.28,DE201282 629
BEIS,Met Office,2024-03-04,11 SERVICES,CHIEF FINANCIAL OFFICER,Ashfords Llp,489344,1755,844502439
BEIS,Met Office,2024-03-27,11 SERVICES,PROGRAMMES,ASTRONOMICAL INSTITUTE UNIVERSITY OF BERN,489834,4444.74,115250351
BEIS,Met Office,2024-03-07,11 SERVICES,MARKETS,AUTOMATED DOCUMENT SERVICES LTD,489635,5087.82,105353449
BEIS,Met Office,2024-03-20,03 STAFF COSTS T&S,SERVICES,AVIS BUDGET PAYLESS,25640,914.9,-
BEIS,Met Office,2024-03-07,11 SERVICES,TECHNOLOGY AND CIO,BAE SYSTEMS APPLIED INTELLIGENCE LIMITED,472385,9618.75,GB641407169
BEIS,Met Office,2024-03-07,11 SERVICES,TECHNOLOGY AND CIO,BAE SYSTEMS APPLIED INTELLIGENCE LIMITED,477410,4690,GB641407169
BEIS,Met Office,2024-03-07,11 SERVICES,TECHNOLOGY AND CIO,BAE SYSTEMS APPLIED INTELLIGENCE LIMITED,477425,-4690,GB641407169
BEIS,Met Office,2024-03-07,11 SERVICES,TECHNOLOGY AND CIO,BAE SYSTEMS APPLIED INTELLIGENCE LIMITED,484649,-9618.75,GB641407169
BEIS,Met Office,2024-03-01,11 SERVICES,TECHNOLOGY AND CIO,BAE SYSTEMS APPLIED INTELLIGENCE LIMITED,488911,8550,GB641407169
BEIS,Met Office,2024-03-01,11 SERVICES,TECHNOLOGY AND CIO,BAE SYSTEMS APPLIED INTELLIGENCE LIMITED,488912,11256,GB641407169
BEIS,Met Office,2024-03-01,11 SERVICES,TECHNOLOGY AND CIO,BAE SYSTEMS APPLIED INTELLIGENCE LIMITED,488913,6214.25,GB641407169
BEIS,Met Office,2024-03-01,11 SERVICES,TECHNOLOGY AND CIO,BAE SYSTEMS APPLIED INTELLIGENCE LIMITED,488914,10889.89,GB641407169
BEIS,Met Office,2024-03-01,11 SERVICES,TECHNOLOGY AND CIO,BAE SYSTEMS APPLIED INTELLIGENCE LIMITED,488917,12540,GB641407169
BEIS,Met Office,2024-03-01,11 SERVICES,TECHNOLOGY AND CIO,BAE SYSTEMS APPLIED INTELLIGENCE LIMITED,488918,14875,GB641407169
BEIS,Met Office,2024-03-01,11 SERVICES,TECHNOLOGY AND CIO,BAE SYSTEMS APPLIED INTELLIGENCE LIMITED,488919,721.65,GB641407169
BEIS,Met Office,2024-03-01,11 SERVICES,TECHNOLOGY AND CIO,BAE SYSTEMS APPLIED INTELLIGENCE LIMITED,488961,10279,GB641407169
BEIS,Met Office,2024-03-05,11 SERVICES,PROGRAMMES,BAE SYSTEMS APPLIED INTELLIGENCE LIMITED,489424,70273.31,GB641407169
BEIS,Met Office,2024-03-14,11 SERVICES,TECHNOLOGY AND CIO,BAE SYSTEMS APPLIED INTELLIGENCE LIMITED,489758,6600,GB641407169
BEIS,Met Office,2024-03-14,11 SERVICES,TECHNOLOGY AND CIO,BAE SYSTEMS APPLIED INTELLIGENCE LIMITED,489759,9899.9,GB641407169
BEIS,Met Office,2024-03-14,11 SERVICES,TECHNOLOGY AND CIO,BAE SYSTEMS APPLIED INTELLIGENCE LIMITED,489857,11220,GB641407169
BEIS,Met Office,2024-03-14,11 SERVICES,PROGRAMMES,BAE SYSTEMS APPLIED INTELLIGENCE LIMITED,489908,2814,GB641407169
BEIS,Met Office,2024-03-14,11 SERVICES,PROGRAMMES,BAE SYSTEMS APPLIED INTELLIGENCE LIMITED,489908,2814,GB641407169
BEIS,Met Office,2024-03-14,11 SERVICES,PROGRAMMES,BAE SYSTEMS APPLIED INTELLIGENCE LIMITED,489908,2814,GB641407169
BEIS,Met Office,2024-03-14,11 SERVICES,PROGRAMMES,BAE SYSTEMS APPLIED INTELLIGENCE LIMITED,489908,3489,GB641407169
BEIS,Met Office,2024-03-14,11 SERVICES,PROGRAMMES,BAE SYSTEMS APPLIED INTELLIGENCE LIMITED,489908,2814,GB641407169
BEIS,Met Office,2024-03-14,11 SERVICES,PROGRAMMES,BAE SYSTEMS APPLIED INTELLIGENCE LIMITED,489908,2814,GB641407169
BEIS,Met Office,2024-03-14,11 SERVICES,PROGRAMMES,BAE SYSTEMS APPLIED INTELLIGENCE LIMITED,489908,1623,GB641407169
BEIS,Met Office,2024-03-14,11 SERVICES,PROGRAMMES,BAE SYSTEMS APPLIED INTELLIGENCE LIMITED,489908,1980,GB641407169
BEIS,Met Office,2024-03-14,11 SERVICES,PROGRAMMES,BAE SYSTEMS APPLIED INTELLIGENCE LIMITED,489908,2814,GB641407169
BEIS,Met Office,2024-03-14,11 SERVICES,PROGRAMMES,BAE SYSTEMS APPLIED INTELLIGENCE LIMITED,489908,3489,GB641407169
BEIS,Met Office,2024-03-14,11 SERVICES,PROGRAMMES,BAE SYSTEMS APPLIED INTELLIGENCE LIMITED,489909,11256,GB641407169
BEIS,Met Office,2024-03-14,11 SERVICES,PROGRAMMES,BAE SYSTEMS APPLIED INTELLIGENCE LIMITED,489909,12428.5,GB641407169
BEIS,Met Office,2024-03-14,11 SERVICES,PROGRAMMES,BAE SYSTEMS APPLIED INTELLIGENCE LIMITED,489909,14070,GB641407169
BEIS,Met Office,2024-03-14,11 SERVICES,PROGRAMMES,BAE SYSTEMS APPLIED INTELLIGENCE LIMITED,489909,15946,GB641407169
BEIS,Met Office,2024-03-14,11 SERVICES,PROGRAMMES,BAE SYSTEMS APPLIED INTELLIGENCE LIMITED,489909,10147.5,GB641407169
BEIS,Met Office,2024-03-14,11 SERVICES,PROGRAMMES,BAE SYSTEMS APPLIED INTELLIGENCE LIMITED,489909,13132,GB641407169
BEIS,Met Office,2024-03-14,11 SERVICES,PROGRAMMES,BAE SYSTEMS APPLIED INTELLIGENCE LIMITED,489909,19771,GB641407169
BEIS,Met Office,2024-03-14,11 SERVICES,PROGRAMMES,BAE SYSTEMS APPLIED INTELLIGENCE LIMITED,489910,2221.3,GB641407169
BEIS,Met Office,2024-03-15,11 SERVICES,TECHNOLOGY AND CIO,BAE SYSTEMS APPLIED INTELLIGENCE LIMITED,489995,663.96,GB641407169
BEIS,Met Office,2024-03-15,11 SERVICES,TECHNOLOGY AND CIO,BAE SYSTEMS APPLIED INTELLIGENCE LIMITED,489996,3246,GB641407169
BEIS,Met Office,2024-03-15,11 SERVICES,TECHNOLOGY AND CIO,BAE SYSTEMS APPLIED INTELLIGENCE LIMITED,489997,5410,GB641407169
BEIS,Met Office,2024-03-15,11 SERVICES,TECHNOLOGY AND CIO,BAE SYSTEMS APPLIED INTELLIGENCE LIMITED,489998,2814,GB641407169
BEIS,Met Office,2024-03-15,11 SERVICES,TECHNOLOGY AND CIO,BAE SYSTEMS APPLIED INTELLIGENCE LIMITED,489999,6566,GB641407169
BEIS,Met Office,2024-03-15,11 SERVICES,TECHNOLOGY AND CIO,BAE SYSTEMS APPLIED INTELLIGENCE LIMITED,490000,11220,GB641407169
BEIS,Met Office,2024-03-15,11 SERVICES,TECHNOLOGY AND CIO,BAE SYSTEMS APPLIED INTELLIGENCE LIMITED,490001,11880,GB641407169
BEIS,Met Office,2024-03-15,11 SERVICES,TECHNOLOGY AND CIO,BAE SYSTEMS APPLIED INTELLIGENCE LIMITED,490002,8580,GB641407169
BEIS,Met Office,2024-03-15,11 SERVICES,TECHNOLOGY AND CIO,BAE SYSTEMS APPLIED INTELLIGENCE LIMITED,490003,5940,GB641407169
BEIS,Met Office,2024-03-15,11 SERVICES,TECHNOLOGY AND CIO,BAE SYSTEMS APPLIED INTELLIGENCE LIMITED,490004,7425,GB641407169
BEIS,Met Office,2024-03-15,11 SERVICES,TECHNOLOGY AND CIO,BAE SYSTEMS APPLIED INTELLIGENCE LIMITED,490005,7973,GB641407169
BEIS,Met Office,2024-03-15,11 SERVICES,TECHNOLOGY AND CIO,BAE SYSTEMS APPLIED INTELLIGENCE LIMITED,490006,4500,GB641407169
BEIS,Met Office,2024-03-26,11 SERVICES,PROGRAMMES,BAE SYSTEMS APPLIED INTELLIGENCE LIMITED,490100,2841,GB641407169
BEIS,Met Office,2024-03-04,13 MISCELLANEOUS,CHIEF FINANCIAL OFFICER,BANNER GROUP LIMITED,489339,2.76,GB391085740
BEIS,Met Office,2024-03-13,13 MISCELLANEOUS,CHIEF FINANCIAL OFFICER,BANNER GROUP LIMITED,489766,52.8,GB391085740
BEIS,Met Office,2024-03-19,13 MISCELLANEOUS,CHIEF FINANCIAL OFFICER,BANNER GROUP LIMITED,490089,57.68,GB391085740
BEIS,Met Office,2024-03-19,13 MISCELLANEOUS,CHIEF FINANCIAL OFFICER,BANNER GROUP LIMITED,490090,158.23,GB391085740
BEIS,Met Office,2024-03-27,11 SERVICES,CHIEF FINANCIAL OFFICER,BANNER GROUP LIMITED,490421,17.08,GB391085740
BEIS,Met Office,2024-03-27,11 SERVICES,CHIEF FINANCIAL OFFICER,BANNER GROUP LIMITED,490422,2.46,GB391085740
BEIS,Met Office,2024-03-27,11 SERVICES,CHIEF FINANCIAL OFFICER,BANNER GROUP LIMITED,490423,7.08,GB391085740
BEIS,Met Office,2024-03-20,13 MISCELLANEOUS,CHIEF FINANCIAL OFFICER,BARBOUR ENVIRONMENTAL AND HEALTH AND SAFETY,490113,5450,-
BEIS,Met Office,2024-03-28,06 ACCOMMODATION,CHIEF FINANCIAL OFFICER,BELL DECORATING GROUP LIMITED,490554,6502,481234360
BEIS,Met Office,2024-03-08,11 SERVICES,SERVICES,BENTLEY TELECOM LTD (was Bentley Walker),489379,-211.79,107995930
BEIS,Met Office,2024-03-08,11 SERVICES,SERVICES,BENTLEY TELECOM LTD (was Bentley Walker),489652,683.34,107995930
BEIS,Met Office,2024-03-06,06 ACCOMMODATION,CHIEF FINANCIAL OFFICER,BIDVEST NOONAN UK LTD,489481,191.01,GB847176988
BEIS,Met Office,2024-03-26,06 ACCOMMODATION,CHIEF FINANCIAL OFFICER,BIDVEST NOONAN UK LTD,489566,-205.54,GB847176988
BEIS,Met Office,2024-03-26,06 ACCOMMODATION,CHIEF FINANCIAL OFFICER,BIDVEST NOONAN UK LTD,490353,501.58,GB847176988
BEIS,Met Office,2024-03-26,06 ACCOMMODATION,CHIEF FINANCIAL OFFICER,BIDVEST NOONAN UK LTD,490354,1111.97,GB847176988
BEIS,Met Office,2024-03-13,06 ACCOMMODATION,CHIEF FINANCIAL OFFICER,BIOTECTURE,489703,2175,925175422
BEIS,Met Office,2024-03-07,11 SERVICES,TECHNOLOGY AND CIO,BJSS LIMITED,489641,65329,613295452
BEIS,Met Office,2024-03-11,11 SERVICES,PROGRAMMES,BJSS LIMITED,489693,11875,613295452
BEIS,Met Office,2024-03-11,11 SERVICES,PROGRAMMES,BJSS LIMITED,489694,16800,613295452
BEIS,Met Office,2024-03-11,11 SERVICES,TECHNOLOGY AND CIO,BJSS LIMITED,489695,13125,613295452
BEIS,Met Office,2024-03-18,11 SERVICES,PROGRAMMES,BJSS LIMITED,489696,73610,613295452
BEIS,Met Office,2024-03-18,11 SERVICES,PROGRAMMES,BJSS LIMITED,489697,10937.5,613295452
BEIS,Met Office,2024-03-18,11 SERVICES,TECHNOLOGY AND CIO,BJSS LIMITED,489697,15000,613295452
BEIS,Met Office,2024-03-11,11 SERVICES,PROGRAMMES,BJSS LIMITED,489705,96572.5,613295452
BEIS,Met Office,2024-03-13,11 SERVICES,PROGRAMMES,BJSS LIMITED,489742,194460,613295452
BEIS,Met Office,2024-03-13,11 SERVICES,PROGRAMMES,BJSS LIMITED,489853,-2460,613295452
BEIS,Met Office,2024-03-06,11 SERVICES,MARKETS,BMG RESEARCH LTD,489476,9820,580 6606 32
BEIS,Met Office,2024-03-06,11 SERVICES,SERVICES,Boc Ltd,489340,25383.25,226556555
BEIS,Met Office,2024-03-07,11 SERVICES,PROGRAMMES,British Red Cross Society,489472,91590,706926227
BEIS,Met Office,2024-03-14,11 SERVICES,CHIEF FINANCIAL OFFICER,British Red Cross Society,489914,558,706926227
BEIS,Met Office,2024-03-13,06 ACCOMMODATION,CHIEF FINANCIAL OFFICER,BROXTOWE BOROUGH COUNCIL,489906,13223.5,118033013
BEIS,Met Office,2024-03-19,11 SERVICES,CHIEF FINANCIAL OFFICER,BT GLOBAL SERVICES,490101,5778.86,245719348
BEIS,Met Office,2024-03-21,11 SERVICES,CHIEF FINANCIAL OFFICER,BT GLOBAL SERVICES,490176,514.19,245719348
BEIS,Met Office,2024-03-04,11 SERVICES,CHIEF FINANCIAL OFFICER,BT plc,489236,9277.79,245719348
BEIS,Met Office,2024-03-06,11 SERVICES,MARKETS,BUPA GLOBAL,489376,6673.2,239731641
BEIS,Met Office,2024-03-14,06 ACCOMMODATION,CHIEF FINANCIAL OFFICER,BUSINESS STREAM,489733,9597.92,945850885
BEIS,Met Office,2024-03-14,06 ACCOMMODATION,CHIEF FINANCIAL OFFICER,BUSINESS STREAM,489734,184.01,945850885
BEIS,Met Office,2024-03-13,06 ACCOMMODATION,CHIEF FINANCIAL OFFICER,BUSINESS SUPPORT CENTRE LTD,489883,1318.01,927365208
BEIS,Met Office,2024-03-22,11 SERVICES,SERVICES,CABINET OFFICE - COF LEAD ACCOUNT,490264,1074,-
BEIS,Met Office,2024-03-06,06 ACCOMMODATION,CHIEF FINANCIAL OFFICER,CALOR GAS LIMITED,489511,1209.13,207610984
BEIS,Met Office,2024-03-14,STOCK,SERVICES,Campbell Scientific Ltd,489709,0,428453933
BEIS,Met Office,2024-03-14,TRADE CREDITORS,SERVICES,Campbell Scientific Ltd,489709,6078.6,428453933
BEIS,Met Office,2024-03-05,13 MISCELLANEOUS,CHIEF FINANCIAL OFFICER,CANON UK LTD,489342,330,523797128
BEIS,Met Office,2024-03-08,13 MISCELLANEOUS,CHIEF FINANCIAL OFFICER,CANON UK LTD,489638,1300.53,523797128
BEIS,Met Office,2024-03-13,13 MISCELLANEOUS,CHIEF FINANCIAL OFFICER,CANON UK LTD,489688,3518.94,523797128
BEIS,Met Office,2024-03-04,06 ACCOMMODATION,CHIEF FINANCIAL OFFICER,CARDIFF EXECUTIVE CENTRE LTD,489321,2470,864497378
BEIS,Met Office,2024-03-05,08 SOFTWARE LICENCES,PEOPLE,CATALYST IT,489467,2270.82,978169262
BEIS,Met Office,2024-03-05,FIXTURE & FITTINGS,CHIEF FINANCIAL OFFICER,CBRE MANAGED SERVICES LTD,489105,153166.78,853936883
BEIS,Met Office,2024-03-05,06 ACCOMMODATION,CHIEF FINANCIAL OFFICER,CBRE MANAGED SERVICES LTD,489105,9693.4,853936883
BEIS,Met Office,2024-03-05,FIXTURE & FITTINGS,CHIEF FINANCIAL OFFICER,CBRE MANAGED SERVICES LTD,489106,-1412.5,853936883
BEIS,Met Office,2024-03-13,06 ACCOMMODATION,CHIEF FINANCIAL OFFICER,CBRE MANAGED SERVICES LTD,489706,31070.14,853936883
BEIS,Met Office,2024-03-13,06 ACCOMMODATION,CHIEF FINANCIAL OFFICER,CBRE MANAGED SERVICES LTD,489707,13981.23,853936883
BEIS,Met Office,2024-03-25,06 ACCOMMODATION,CHIEF FINANCIAL OFFICER,CBRE MANAGED SERVICES LTD,490395,46831.68,853936883
BEIS,Met Office,2024-03-25,06 ACCOMMODATION,CHIEF FINANCIAL OFFICER,CBRE MANAGED SERVICES LTD,490396,26937.6,853936883
BEIS,Met Office,2024-03-25,06 ACCOMMODATION,CHIEF FINANCIAL OFFICER,CBRE MANAGED SERVICES LTD,490397,169500.01,853936883
BEIS,Met Office,2024-03-25,06 ACCOMMODATION,CHIEF FINANCIAL OFFICER,CBRE MANAGED SERVICES LTD,490398,48103.85,853936883
BEIS,Met Office,2024-03-25,PLANT AND EQUIPMENT,CHIEF FINANCIAL OFFICER,CBRE MANAGED SERVICES LTD,490399,10000,853936883
BEIS,Met Office,2024-03-26,06 ACCOMMODATION,CHIEF FINANCIAL OFFICER,CBRE MANAGED SERVICES LTD,490400,1011.03,853936883
BEIS,Met Office,2024-03-26,06 ACCOMMODATION,CHIEF FINANCIAL OFFICER,CBRE MANAGED SERVICES LTD,490400,7110.35,853936883
BEIS,Met Office,2024-03-25,06 ACCOMMODATION,CHIEF FINANCIAL OFFICER,CBRE MANAGED SERVICES LTD,490401,170000,853936883
BEIS,Met Office,2024-03-25,06 ACCOMMODATION,CHIEF FINANCIAL OFFICER,CBRE MANAGED SERVICES LTD,490402,39146.08,853936883
BEIS,Met Office,2024-03-28,06 ACCOMMODATION,CHIEF FINANCIAL OFFICER,CBRE MANAGED SERVICES LTD,490556,24586.92,853936883
BEIS,Met Office,2024-03-28,06 ACCOMMODATION,CHIEF FINANCIAL OFFICER,CBRE MANAGED SERVICES LTD,490556,31070.14,853936883
BEIS,Met Office,2024-03-04,06 ACCOMMODATION,CHIEF FINANCIAL OFFICER,CELLNEX,489373,952,GB 843 8792 82
BEIS,Met Office,2024-03-19,08 SOFTWARE LICENCES,CHIEF FINANCIAL OFFICER,CEMAR,490115,850,915042161
BEIS,Met Office,2024-03-06,11 SERVICES,PROGRAMMES,CENTRO INTERNACIONAL DE AGRICULTURA TROPICAL,489460,146224,na
BEIS,Met Office,2024-03-14,11 SERVICES,MARKETS,Cgi It Uk Limited,424458,2027.04,232615194
BEIS,Met Office,2024-03-14,11 SERVICES,MARKETS,Cgi It Uk Limited,424459,-274.43,232615194
BEIS,Met Office,2024-03-14,11 SERVICES,MARKETS,Cgi It Uk Limited,486000,-2027.04,232615194
BEIS,Met Office,2024-03-14,11 SERVICES,MARKETS,Cgi It Uk Limited,486170,1155.74,232615194
BEIS,Met Office,2024-03-14,11 SERVICES,MARKETS,Cgi It Uk Limited,486171,-881.31,232615194
BEIS,Met Office,2024-03-08,11 SERVICES,PROGRAMMES,Cgi It Uk Limited,489462,79239,232615194
BEIS,Met Office,2024-03-08,11 SERVICES,PROGRAMMES,Cgi It Uk Limited,489463,28588,232615194
BEIS,Met Office,2024-03-08,11 SERVICES,PROGRAMMES,Cgi It Uk Limited,489464,37693,232615194
BEIS,Met Office,2024-03-06,03 STAFF COSTS T&S,SERVICES,CHARLIE'S TRAVEL LTD,489527,379.33,783848277
BEIS,Met Office,2024-03-27,03 STAFF COSTS T&S,SERVICES,CHARLIE'S TRAVEL LTD,490442,380.11,783848277
BEIS,Met Office,2024-03-27,03 STAFF COSTS T&S,SERVICES,CHARLIE'S TRAVEL LTD,490448,378.73,783848277
BEIS,Met Office,2024-03-27,03 STAFF COSTS T&S,SERVICES,CHARLIE'S TRAVEL LTD,490557,409.26,783848277
BEIS,Met Office,2024-03-12,06 ACCOMMODATION,CHIEF FINANCIAL OFFICER,Cheshire East Borough Council,489768,1354.41,N/A
BEIS,Met Office,2024-03-12,06 ACCOMMODATION,CHIEF FINANCIAL OFFICER,Cheshire East Borough Council,489769,158.49,N/A
BEIS,Met Office,2024-03-06,08 SOFTWARE LICENCES,PROGRAMMES,CHIBILOGIC S.R.L.,25591,1929.94,IT 02679520649
BEIS,Met Office,2024-03-01,08 SOFTWARE LICENCES,SERVICES,CIVICA UK LIMITED,489265,11381.25,391171065
BEIS,Met Office,2024-03-11,11 SERVICES,PEOPLE,CIVICA UK LIMITED,489704,7503.5,391171065
BEIS,Met Office,2024-03-12,11 SERVICES,PEOPLE,CIVICA UK LIMITED,489832,3500,391171065
BEIS,Met Office,2024-03-19,08 SOFTWARE LICENCES,SERVICES,CIVICA UK LIMITED,490118,11381.25,391171065
BEIS,Met Office,2024-03-12,07 EQUIPMENT,SERVICES,CLARKE LANE ENGINEERING LTD,489702,52.89,412068487
BEIS,Met Office,2024-03-12,07 EQUIPMENT,SERVICES,CLARKE LANE ENGINEERING LTD,489791,164.98,412068487
BEIS,Met Office,2024-03-12,07 EQUIPMENT,SERVICES,CLARKE LANE ENGINEERING LTD,489791,193.78,412068487
BEIS,Met Office,2024-03-14,06 ACCOMMODATION,CHIEF FINANCIAL OFFICER,CLEARVIEW SYSTEMS,489971,1400,454312121
BEIS,Met Office,2024-03-11,11 SERVICES,TECHNOLOGY AND CIO,CLOUDREACH EUROPE LIMITED,489741,4021.21,978187168
BEIS,Met Office,2024-03-12,11 SERVICES,SERVICES,CLOUDREACH EUROPE LIMITED,489830,5260.25,978187168
BEIS,Met Office,2024-03-12,11 SERVICES,SERVICES,CLOUDREACH EUROPE LIMITED,489831,7300,978187168
BEIS,Met Office,2024-03-27,06 ACCOMMODATION,CHIEF FINANCIAL OFFICER,COMPASS SERVICES UK LTD,490381,6037.91,466477701
BEIS,Met Office,2024-03-27,06 ACCOMMODATION,CHIEF FINANCIAL OFFICER,COMPASS SERVICES UK LTD,490382,964.33,466477701
BEIS,Met Office,2024-03-27,06 ACCOMMODATION,CHIEF FINANCIAL OFFICER,COMPASS SERVICES UK LTD,490383,1590.66,466477701
BEIS,Met Office,2024-03-27,06 ACCOMMODATION,CHIEF FINANCIAL OFFICER,COMPASS SERVICES UK LTD,490383,10631.12,466477701
BEIS,Met Office,2024-03-27,06 ACCOMMODATION,CHIEF FINANCIAL OFFICER,COMPASS SERVICES UK LTD,490384,45437.69,466477701
BEIS,Met Office,2024-03-27,06 ACCOMMODATION,CHIEF FINANCIAL OFFICER,COMPASS SERVICES UK LTD,490385,2068.2,466477701
BEIS,Met Office,2024-03-27,06 ACCOMMODATION,CHIEF FINANCIAL OFFICER,COMPASS SERVICES UK LTD,490386,21441.84,466477701
BEIS,Met Office,2024-03-27,06 ACCOMMODATION,CHIEF FINANCIAL OFFICER,COMPASS SERVICES UK LTD,490387,27717.31,466477701
BEIS,Met Office,2024-03-27,06 ACCOMMODATION,CHIEF FINANCIAL OFFICER,COMPASS SERVICES UK LTD,490388,91775.37,466477701
BEIS,Met Office,2024-03-01,10 EQUIPMENT MAINTENANCE,TECHNOLOGY AND CIO,COMPUTACENTER (UK) LTD,489175,4232.83,490334648
BEIS,Met Office,2024-03-18,INFORMATION TECHNOLOGY,TECHNOLOGY AND CIO,COMPUTACENTER (UK) LTD,489513,34789.05,490334648
BEIS,Met Office,2024-03-18,INFORMATION TECHNOLOGY,TECHNOLOGY AND CIO,COMPUTACENTER (UK) LTD,489513,13109.85,490334648
BEIS,Met Office,2024-03-18,INFORMATION TECHNOLOGY,TECHNOLOGY AND CIO,COMPUTACENTER (UK) LTD,489513,16439.8,490334648
BEIS,Met Office,2024-03-07,07 EQUIPMENT,TECHNOLOGY AND CIO,COMPUTACENTER (UK) LTD,489514,115.87,490334648
BEIS,Met Office,2024-03-11,11 SERVICES,TECHNOLOGY AND CIO,COMPUTACENTER (UK) LTD,489691,37620,490334648
BEIS,Met Office,2024-03-11,11 SERVICES,TECHNOLOGY AND CIO,COMPUTACENTER (UK) LTD,489691,7920,490334648
BEIS,Met Office,2024-03-11,11 SERVICES,TECHNOLOGY AND CIO,COMPUTACENTER (UK) LTD,489692,955227.12,490334648
BEIS,Met Office,2024-03-13,INFORMATION TECHNOLOGY,TECHNOLOGY AND CIO,COMPUTACENTER (UK) LTD,489852,24641.96,490334648
BEIS,Met Office,2024-03-20,07 EQUIPMENT,TECHNOLOGY AND CIO,COMPUTACENTER (UK) LTD,490252,5466.27,490334648
BEIS,Met Office,2024-03-20,07 EQUIPMENT,TECHNOLOGY AND CIO,COMPUTACENTER (UK) LTD,490253,30,490334648
BEIS,Met Office,2024-03-20,07 EQUIPMENT,TECHNOLOGY AND CIO,COMPUTACENTER (UK) LTD,490254,4029.7,490334648
BEIS,Met Office,2024-03-26,10 EQUIPMENT MAINTENANCE,TECHNOLOGY AND CIO,COMPUTACENTER (UK) LTD,490441,4481.82,490334648
BEIS,Met Office,2024-03-26,08 SOFTWARE LICENCES,TECHNOLOGY AND CIO,CONVERGENCE (GROUP NETWORK) LTD,490415,16155.15,GB286 5378 54
BEIS,Met Office,2024-03-13,06 ACCOMMODATION,CHIEF FINANCIAL OFFICER,CORNWALL COUNCIL - KERRIER DIVISION,489851,18213.5,-
BEIS,Met Office,2024-03-06,13 MISCELLANEOUS,CHIEF FINANCIAL OFFICER,COURIER FORCE,489475,520,924397208
BEIS,Met Office,2024-03-19,13 MISCELLANEOUS,CHIEF FINANCIAL OFFICER,COURIER FORCE,490108,55,924397208
BEIS,Met Office,2024-03-26,13 MISCELLANEOUS,CHIEF FINANCIAL OFFICER,COURIER FORCE,490449,210,924397208
BEIS,Met Office,2024-03-12,11 SERVICES,PEOPLE,CREATURE MEDIA LTD,489108,5000,128411336
BEIS,Met Office,2024-03-13,11 SERVICES,PEOPLE,CREATURE MEDIA LTD,489730,5000,128411336
BEIS,Met Office,2024-03-27,12 INTERNATIONAL,MARKETS,CROWN AGENTS BANK,490461,13215.68,-
BEIS,Met Office,2024-03-06,11 SERVICES,MARKETS,CULVERWELL ASSOCIATES LTD,489568,4500,386 6119 65
BEIS,Met Office,2024-03-12,06 ACCOMMODATION,CHIEF FINANCIAL OFFICER,D&G OFFICE SERVICES LTD,489794,312,272997547
BEIS,Met Office,2024-03-20,FIXTURE & FITTINGS,CHIEF FINANCIAL OFFICER,D&G OFFICE SERVICES LTD,490228,969.8,272997547
BEIS,Met Office,2024-03-20,11 SERVICES,MARKETS,Danish Meteorological Institute (DMI),25623,1314.54,N/A
BEIS,Met Office,2024-03-01,03 STAFF COSTS T&S,SERVICES,DBS FINANCE RECEIPTS CTS,489300,2414,888805068
BEIS,Met Office,2024-03-27,13 MISCELLANEOUS,CHIEF FINANCIAL OFFICER,DEMSTAR BUSINESS SOLUTIONS LTD,25661,74.77,10156145J
BEIS,Met Office,2024-03-06,11 SERVICES,SERVICES,Deutscher Wetterdienst,25624,482.87,-
BEIS,Met Office,2024-03-18,08 SOFTWARE LICENCES,TECHNOLOGY AND CIO,Digital.ai Software (UK) Ltd,490102,12272,228794369
BEIS,Met Office,2024-03-06,13 MISCELLANEOUS,TECHNOLOGY AND CIO,DIRECTIONS ON MICROSOFT,11404,5506.81,-
BEIS,Met Office,2024-03-27,11 SERVICES,PEOPLE,DRIVE CREATIVE STUDIO LTD,490489,1500,167656860
BEIS,Met Office,2024-03-05,11 SERVICES,PROGRAMMES,Dstl,489479,2518.7,888805166
BEIS,Met Office,2024-03-25,06 ACCOMMODATION,CHIEF FINANCIAL OFFICER,East Devon District Council,490262,5763.45,142218990
BEIS,Met Office,2024-03-22,06 ACCOMMODATION,CHIEF FINANCIAL OFFICER,East Devon District Council,490263,249795,142218990
BEIS,Met Office,2024-03-26,11 SERVICES,SERVICES,EAST RIDING OF YORKSHIRE COUNCIL IHA,485935,1686.4,647471123
BEIS,Met Office,2024-03-18,12 INTERNATIONAL,MARKETS,ECMWF,487262,8208043,NOTVATREG
BEIS,Met Office,2024-03-18,11 SERVICES,CHIEF FINANCIAL OFFICER,ECMWF,488665,-681.17,NOTVATREG
BEIS,Met Office,2024-03-06,13 MISCELLANEOUS,PEOPLE,EDENRED - CHILDCARE VOUCHERS,489052,-243,649 503 520
BEIS,Met Office,2024-03-06,13 MISCELLANEOUS,PEOPLE,EDENRED - CHILDCARE VOUCHERS,489490,7317.5,649 503 520
BEIS,Met Office,2024-03-13,13 MISCELLANEOUS,PEOPLE,EDENRED I&M (IRS VOUCHERS),488924,-28828.4,649 503 520
BEIS,Met Office,2024-03-13,13 MISCELLANEOUS,PEOPLE,EDENRED I&M (IRS VOUCHERS),489330,38262.2,649 503 520
BEIS,Met Office,2024-03-11,CYCLESCHEME,OTHER,EDENRED UK (CYCLESCHEME),489642,7699.14,649 503 520
BEIS,Met Office,2024-03-07,06 ACCOMMODATION,CHIEF FINANCIAL OFFICER,EDF ENERGY CUSTOMERS PLC,489519,542697.22,523041202
BEIS,Met Office,2024-03-07,06 ACCOMMODATION,CHIEF FINANCIAL OFFICER,EDF ENERGY CUSTOMERS PLC,489520,180938.09,523041202
BEIS,Met Office,2024-03-07,06 ACCOMMODATION,CHIEF FINANCIAL OFFICER,EDF ENERGY CUSTOMERS PLC,489521,186673.3,523041202
BEIS,Met Office,2024-03-14,06 ACCOMMODATION,CHIEF FINANCIAL OFFICER,EDF ENERGY CUSTOMERS PLC,489855,6539.25,523041202
BEIS,Met Office,2024-03-27,11 SERVICES,CHIEF FINANCIAL OFFICER,EIR,25674,57.88,4736919B
BEIS,Met Office,2024-03-04,03 STAFF COSTS T&S,CHIEF FINANCIAL OFFICER,ENTERPRISE RENT A CAR UK LTD,489346,293.9,215557314
BEIS,Met Office,2024-03-05,03 STAFF COSTS T&S,CHIEF FINANCIAL OFFICER,ENTERPRISE RENT A CAR UK LTD,489461,3707.81,215557314
BEIS,Met Office,2024-03-08,03 STAFF COSTS T&S,CHIEF FINANCIAL OFFICER,ENTERPRISE RENT A CAR UK LTD,489686,468.64,215557314
BEIS,Met Office,2024-03-12,03 STAFF COSTS T&S,CHIEF FINANCIAL OFFICER,ENTERPRISE RENT A CAR UK LTD,489793,4187.44,215557314
BEIS,Met Office,2024-03-18,03 STAFF COSTS T&S,CHIEF FINANCIAL OFFICER,ENTERPRISE RENT A CAR UK LTD,490096,5740.4,215557314
BEIS,Met Office,2024-03-18,03 STAFF COSTS T&S,CHIEF FINANCIAL OFFICER,ENTERPRISE RENT A CAR UK LTD,490097,545.82,215557314
BEIS,Met Office,2024-03-26,03 STAFF COSTS T&S,CHIEF FINANCIAL OFFICER,ENTERPRISE RENT A CAR UK LTD,490420,3790.1,215557314
BEIS,Met Office,2024-03-27,11 SERVICES,SCIENCE,Environment Canada,489417,949.27,-
BEIS,Met Office,2024-03-05,11 SERVICES,PROGRAMMES,ESCOTT HUNT LTD,489304,190,815727127
BEIS,Met Office,2024-03-05,11 SERVICES,SCIENCE,ESCOTT HUNT LTD,489304,190,815727127
BEIS,Met Office,2024-03-05,11 SERVICES,SERVICES,ESCOTT HUNT LTD,489304,570,815727127
BEIS,Met Office,2024-03-06,11 SERVICES,SCIENCE,Esri (Uk) Ltd,489465,8958.8,787430791
BEIS,Met Office,2024-03-13,11 SERVICES,SCIENCE,Esri (Uk) Ltd,489901,23101.4,787430791
BEIS,Met Office,2024-03-19,11 SERVICES,SCIENCE,Esri (Uk) Ltd,490106,6165,787430791
BEIS,Met Office,2024-03-27,13 MISCELLANEOUS,SCIENCE,EUFAR AISBL,25678,3269.79,-
BEIS,Met Office,2024-03-27,12 INTERNATIONAL,SCIENCE,EUROGOOS AISBL,25622,10243.9,0521.723.012
BEIS,Met Office,2024-03-06,12 INTERNATIONAL,MARKETS,EUROPEAN METEOROLOGICAL SOCIETY,25610,1065.98,-
BEIS,Met Office,2024-03-13,06 ACCOMMODATION,CHIEF FINANCIAL OFFICER,Exeter City Council,489836,6483.88,142335594
BEIS,Met Office,2024-03-22,06 ACCOMMODATION,CHIEF FINANCIAL OFFICER,Exeter City Council,489837,163800,142335594
BEIS,Met Office,2024-03-01,11 SERVICES,OFFICE OF THE CEO,EXETER RUGBY CLUB LTD,489231,-512.67,918551313
BEIS,Met Office,2024-03-06,11 SERVICES,CHIEF FINANCIAL OFFICER,EXPONENTIAL-E,488611,2281.82,GB798572653
BEIS,Met Office,2024-03-06,11 SERVICES,CHIEF FINANCIAL OFFICER,EXPONENTIAL-E,488817,-2281.82,GB798572653
BEIS,Met Office,2024-03-06,11 SERVICES,TECHNOLOGY AND CIO,EXPONENTIAL-E,489569,3354.58,GB798572653
BEIS,Met Office,2024-03-07,03 STAFF COSTS T&S,SERVICES,FALKLAND ISLAND COMPANY LTD,489625,700,N/A
BEIS,Met Office,2024-03-07,03 STAFF COSTS T&S,SERVICES,FALKLAND ISLAND COMPANY LTD,489627,700,N/A
BEIS,Met Office,2024-03-07,03 STAFF COSTS T&S,SERVICES,FALKLAND ISLAND COMPANY LTD,489628,700,N/A
BEIS,Met Office,2024-03-01,11 SERVICES,PROGRAMMES,FCDO,489189,517,888813560
BEIS,Met Office,2024-03-13,11 SERVICES,PROGRAMMES,FCDO,489856,3214.46,888813560
BEIS,Met Office,2024-03-20,11 SERVICES,PROGRAMMES,FCDO,490191,1189.05,888813560
BEIS,Met Office,2024-03-27,11 SERVICES,PROGRAMMES,FLIGHTRADAR24,489332,75926,-
BEIS,Met Office,2024-03-04,11 SERVICES,CHIEF FINANCIAL OFFICER,FLYFORM LTD,489350,29999.25,237333808
BEIS,Met Office,2024-03-04,11 SERVICES,SERVICES,FLYFORM LTD,489351,11014.34,237333808
BEIS,Met Office,2024-03-26,11 SERVICES,CHIEF FINANCIAL OFFICER,FLYFORM LTD,490463,18992.06,237333808
BEIS,Met Office,2024-03-27,11 SERVICES,PROGRAMMES,FLYHT AEROSPACE SOLUTIONS LTD,11269,7171.06,-
BEIS,Met Office,2024-03-27,11 SERVICES,PROGRAMMES,FLYHT AEROSPACE SOLUTIONS LTD,11410,1857.62,-
BEIS,Met Office,2024-03-20,11 SERVICES,MARKETS,FONDAZIONE CMCC - CENTRO EURO-MEDITERRANEO,25629,3118.01,03873750750
BEIS,Met Office,2024-03-07,12 INTERNATIONAL,MARKETS,FOXSTONES TRAINING AND LEARNING,489631,2950,-
BEIS,Met Office,2024-03-27,11 SERVICES,PROGRAMMES,FUNDACAO ARTHUR BERNARDES - FUNARBE,490230,177240,-
BEIS,Met Office,2024-03-27,11 SERVICES,PROGRAMMES,FUNDACAO ARTHUR BERNARDES - FUNARBE,490287,781262.4,-
BEIS,Met Office,2024-03-27,11 SERVICES,CHIEF FINANCIAL OFFICER,G4S FIRE & SECURITY SYSTEMS (UK),490552,3567,238560256
BEIS,Met Office,2024-03-06,11 SERVICES,PROGRAMMES,GALLE FACE HOTEL 1994 (PVT) LTD,11431,41585.5,114128538
BEIS,Met Office,2024-03-27,11 SERVICES,CHIEF FINANCIAL OFFICER,GAMMA BUSINESS COMMUNICATIONS LTD,480715,570.83,823820344
BEIS,Met Office,2024-03-12,11 SERVICES,CHIEF FINANCIAL OFFICER,GAMMA TELECOM LTD,489806,27997.74,823820344
BEIS,Met Office,2024-03-12,11 SERVICES,CHIEF FINANCIAL OFFICER,GAMMA TELECOM LTD,489806,910.26,823820344
BEIS,Met Office,2024-03-12,11 SERVICES,CHIEF FINANCIAL OFFICER,GAMMA TELECOM LTD,489806,570.83,823820344
BEIS,Met Office,2024-03-12,11 SERVICES,SERVICES,GAMMA TELECOM LTD,489807,4607.16,823820344
BEIS,Met Office,2024-03-18,11 SERVICES,CHIEF FINANCIAL OFFICER,GB GROUP PLC,488661,676.68,539716218
BEIS,Met Office,2024-03-18,11 SERVICES,CHIEF FINANCIAL OFFICER,GB GROUP PLC,489799,129.62,539716218
BEIS,Met Office,2024-03-18,11 SERVICES,CHIEF FINANCIAL OFFICER,GB GROUP PLC,489800,713.89,539716218
BEIS,Met Office,2024-03-15,11 SERVICES,TECHNOLOGY AND CIO,GCHQ PUBLIC ACCOUNT - CESG,489510,25880.31,888813658
BEIS,Met Office,2024-03-13,11 SERVICES,CHIEF FINANCIAL OFFICER,GIBRALTAR NYNEX COMMUNICATIONS LTD,489728,660,NOVAT
BEIS,Met Office,2024-03-04,10 EQUIPMENT MAINTENANCE,SERVICES,Goldisc Limited,489322,1700,861294416
BEIS,Met Office,2024-03-04,10 EQUIPMENT MAINTENANCE,SERVICES,Goldisc Limited,489322,1700,861294416
BEIS,Met Office,2024-03-04,10 EQUIPMENT MAINTENANCE,SERVICES,Goldisc Limited,489322,1700,861294416
BEIS,Met Office,2024-03-04,10 EQUIPMENT MAINTENANCE,SERVICES,Goldisc Limited,489322,1700,861294416
BEIS,Met Office,2024-03-04,11 SERVICES,SERVICES,Goldisc Limited,489322,100,861294416
BEIS,Met Office,2024-03-05,08 SOFTWARE LICENCES,TECHNOLOGY AND CIO,GOOGLE IRELAND LTD,489407,43.78,6388047V
BEIS,Met Office,2024-03-22,11 SERVICES,SERVICES,GROUND CONTROL UK TECHNOLOGIES LTD,490242,71,GB277698137
BEIS,Met Office,2024-03-22,11 SERVICES,SERVICES,GROUND CONTROL UK TECHNOLOGIES LTD,490242,228.02,GB277698137
BEIS,Met Office,2024-03-22,11 SERVICES,SERVICES,GROUND CONTROL UK TECHNOLOGIES LTD,490242,690,GB277698137
BEIS,Met Office,2024-03-22,11 SERVICES,SERVICES,GROUND CONTROL UK TECHNOLOGIES LTD,490242,1258.02,GB277698137
BEIS,Met Office,2024-03-22,11 SERVICES,SERVICES,GROUND CONTROL UK TECHNOLOGIES LTD,490242,3450.06,GB277698137
BEIS,Met Office,2024-03-22,11 SERVICES,SERVICES,GROUND CONTROL UK TECHNOLOGIES LTD,490242,1818.08,GB277698137
BEIS,Met Office,2024-03-22,11 SERVICES,SERVICES,GROUND CONTROL UK TECHNOLOGIES LTD,490242,2006.46,GB277698137
BEIS,Met Office,2024-03-18,06 ACCOMMODATION,CHIEF FINANCIAL OFFICER,GRS BUILDING SERVICES SOUTH-WEST,490103,3100,-
BEIS,Met Office,2024-03-01,03 STAFF COSTS T&S,SERVICES,HCR LTD,489087,4653.14,733 7205 46
BEIS,Met Office,2024-03-01,03 STAFF COSTS T&S,SERVICES,HCR LTD,489088,2945,733 7205 46
BEIS,Met Office,2024-03-01,03 STAFF COSTS T&S,SERVICES,HCR LTD,489090,581.29,733 7205 46
BEIS,Met Office,2024-03-01,03 STAFF COSTS T&S,SERVICES,HCR LTD,489091,3638,733 7205 46
BEIS,Met Office,2024-03-01,03 STAFF COSTS T&S,SERVICES,HCR LTD,489092,2850,733 7205 46
BEIS,Met Office,2024-03-01,03 STAFF COSTS T&S,SERVICES,HCR LTD,489093,-1330,733 7205 46
BEIS,Met Office,2024-03-01,03 STAFF COSTS T&S,SERVICES,HCR LTD,489095,75,733 7205 46
BEIS,Met Office,2024-03-14,03 STAFF COSTS T&S,SERVICES,HCR LTD,489801,8338.42,733 7205 46
BEIS,Met Office,2024-03-14,03 STAFF COSTS T&S,SERVICES,HCR LTD,489802,2850,733 7205 46
BEIS,Met Office,2024-03-12,03 STAFF COSTS T&S,SERVICES,HCR LTD,489803,2549.62,733 7205 46
BEIS,Met Office,2024-03-22,03 STAFF COSTS T&S,SERVICES,HCR LTD,490289,1608.54,733 7205 46
BEIS,Met Office,2024-03-27,06 ACCOMMODATION,CHIEF FINANCIAL OFFICER,Health & Safety Executive,490403,79194.56,888810177
BEIS,Met Office,2024-03-27,06 ACCOMMODATION,CHIEF FINANCIAL OFFICER,Health & Safety Executive,490403,22451.52,888810177
BEIS,Met Office,2024-03-08,11 SERVICES,PEOPLE,HEALTH ASSURED LIMITED,489577,1120,927 5242 17
BEIS,Met Office,2024-03-26,10 EQUIPMENT MAINTENANCE,TECHNOLOGY AND CIO,Hewlett Packard Ltd,490447,335920,314149679
BEIS,Met Office,2024-03-04,11 SERVICES,SERVICES,HITACHI CAPITAL VEHICLE SOLUTIONS,489266,69.32,GB 823 8248 22
BEIS,Met Office,2024-03-06,11 SERVICES,SERVICES,HITACHI CAPITAL VEHICLE SOLUTIONS,489347,877.17,GB 823 8248 22
BEIS,Met Office,2024-03-28,03 STAFF COSTS T&S,SERVICES,HITACHI CAPITAL VEHICLE SOLUTIONS,490568,12.5,GB 823 8248 22
BEIS,Met Office,2024-03-28,03 STAFF COSTS T&S,SERVICES,HITACHI CAPITAL VEHICLE SOLUTIONS,490571,32.2,GB 823 8248 22
BEIS,Met Office,2024-03-21,06 ACCOMMODATION,CHIEF FINANCIAL OFFICER,HSB ENGINEERING INSURANCE SERVICES LTD,483429,5750,652642243
BEIS,Met Office,2024-03-21,06 ACCOMMODATION,CHIEF FINANCIAL OFFICER,HSB ENGINEERING INSURANCE SERVICES LTD,487957,-5750,652642243
BEIS,Met Office,2024-03-06,07 EQUIPMENT,SERVICES,HYDROSPHERE UK LIMITED,489522,14,641275549
BEIS,Met Office,2024-03-06,07 EQUIPMENT,SERVICES,HYDROSPHERE UK LIMITED,489522,950,641275549
BEIS,Met Office,2024-03-25,10 EQUIPMENT MAINTENANCE,SERVICES,HYDROSPHERE UK LIMITED,490340,3256,641275549
BEIS,Met Office,2024-03-25,10 EQUIPMENT MAINTENANCE,SERVICES,HYDROSPHERE UK LIMITED,490340,4556,641275549
BEIS,Met Office,2024-03-25,10 EQUIPMENT MAINTENANCE,SERVICES,HYDROSPHERE UK LIMITED,490340,400,641275549
BEIS,Met Office,2024-03-25,10 EQUIPMENT MAINTENANCE,SERVICES,HYDROSPHERE UK LIMITED,490340,972,641275549
BEIS,Met Office,2024-03-25,10 EQUIPMENT MAINTENANCE,SERVICES,HYDROSPHERE UK LIMITED,490340,21472,641275549
BEIS,Met Office,2024-03-22,10 EQUIPMENT MAINTENANCE,SERVICES,HYDROSPHERE UK LIMITED,490341,4501,641275549
BEIS,Met Office,2024-03-27,11 SERVICES,TECHNOLOGY AND CIO,"IBL SOFTWARE ENGINEERING, SPOL S.R.O.",489224,60555.64,SK2020241883
BEIS,Met Office,2024-03-27,08 SOFTWARE LICENCES,MARKETS,"IBL SOFTWARE ENGINEERING, SPOL S.R.O.",489408,-17722,SK2020241883
BEIS,Met Office,2024-03-04,08 SOFTWARE LICENCES,MARKETS,"IBL SOFTWARE ENGINEERING, SPOL S.R.O.",489409,17722,SK2020241883
BEIS,Met Office,2024-03-04,11 SERVICES,PROGRAMMES,Ibm United Kingdom Ltd,489336,13440.5,107328000
BEIS,Met Office,2024-03-04,08 SOFTWARE LICENCES,TECHNOLOGY AND CIO,Ibm United Kingdom Ltd,489399,7348.2,107328000
BEIS,Met Office,2024-03-06,12 INTERNATIONAL,MARKETS,IDEMS INTERNATIONAL COMMUNITY INTEREST CO,489480,5000,-
BEIS,Met Office,2024-03-20,12 INTERNATIONAL,MARKETS,IDEMS INTERNATIONAL COMMUNITY INTEREST CO,490201,6000,-
BEIS,Met Office,2024-03-18,11 SERVICES,PEOPLE,INCOMES DATA RESEARCH LTD,490007,785,201387245
BEIS,Met Office,2024-03-05,11 SERVICES,SERVICES,INMARSAT SOLUTIONS (CANADA) INC,489420,43.41,766144223
BEIS,Met Office,2024-03-05,11 SERVICES,SERVICES,INMARSAT SOLUTIONS (CANADA) INC,489421,43.41,766144223
BEIS,Met Office,2024-03-05,11 SERVICES,MARKETS,INMARSAT SOLUTIONS (CANADA) INC,489422,1957.46,766144223
BEIS,Met Office,2024-03-05,11 SERVICES,SERVICES,INMARSAT SOLUTIONS (CANADA) INC,489423,86.82,766144223
BEIS,Met Office,2024-03-21,07 EQUIPMENT,TECHNOLOGY AND CIO,INSURGO MEDIA SERVICES LTD,485653,2860,979682734
BEIS,Met Office,2024-03-21,07 EQUIPMENT,TECHNOLOGY AND CIO,INSURGO MEDIA SERVICES LTD,490291,-2860,979682734
BEIS,Met Office,2024-03-26,07 EQUIPMENT,TECHNOLOGY AND CIO,INSURGO MEDIA SERVICES LTD,490404,220000,979682734
BEIS,Met Office,2024-03-26,07 EQUIPMENT,TECHNOLOGY AND CIO,INSURGO MEDIA SERVICES LTD,490405,220000,979682734
BEIS,Met Office,2024-03-27,07 EQUIPMENT,TECHNOLOGY AND CIO,INSURGO MEDIA SERVICES LTD,490406,4400,979682734
BEIS,Met Office,2024-03-06,11 SERVICES,MARKETS,"INTELLOVATIONS, LLC",11436,1700.32,-
BEIS,Met Office,2024-03-06,11 SERVICES,MARKETS,"INTELLOVATIONS, LLC",11436,4217.26,-
BEIS,Met Office,2024-03-06,11 SERVICES,MARKETS,"INTELLOVATIONS, LLC",11437,4217.25,-
BEIS,Met Office,2024-03-27,11 SERVICES,MARKETS,INTERNATIONAL AIR TRANSPORT ASSOCIATION,11468,9494.13,107510570RT0001
BEIS,Met Office,2024-03-27,11 SERVICES,MARKETS,INTERNATIONAL CIVIL AVIATION ORGANIZATION,489345,29199,-
BEIS,Met Office,2024-03-19,11 SERVICES,CHIEF FINANCIAL OFFICER,INTEROUTE COMMUNICATIONS LIMITED,490074,-2388.19,832 7071 39
BEIS,Met Office,2024-03-19,11 SERVICES,CHIEF FINANCIAL OFFICER,INTEROUTE COMMUNICATIONS LIMITED,490075,1400,832 7071 39
BEIS,Met Office,2024-03-19,11 SERVICES,CHIEF FINANCIAL OFFICER,INTEROUTE COMMUNICATIONS LIMITED,490075,6600,832 7071 39
BEIS,Met Office,2024-03-06,11 SERVICES,MARKETS,IRIDIUM SATELLITE LLC,11415,4408.6,N/A
BEIS,Met Office,2024-03-20,07 EQUIPMENT,SERVICES,J & J NEGUS LTD,490186,3047,GB273543159
BEIS,Met Office,2024-03-20,13 MISCELLANEOUS,SERVICES,J & J NEGUS LTD,490240,20000,GB273543159
BEIS,Met Office,2024-03-20,13 MISCELLANEOUS,SERVICES,J & J NEGUS LTD,490241,23000,GB273543159
BEIS,Met Office,2024-03-06,11 SERVICES,MARKETS,JCT Ltd,489056,7269.2,714 3761 44
BEIS,Met Office,2024-03-06,11 SERVICES,CHIEF FINANCIAL OFFICER,JERSEY TELECOM,489509,1292.4,NOTVATREG
BEIS,Met Office,2024-03-26,11 SERVICES,SCIENCE,JOHN INNES CENTRE,490446,5000,GB398061368
BEIS,Met Office,2024-03-26,10 EQUIPMENT MAINTENANCE,SERVICES,KERRY MARINE,490391,8881,350140941
BEIS,Met Office,2024-03-26,10 EQUIPMENT MAINTENANCE,SERVICES,KERRY MARINE,490392,425,350140941
BEIS,Met Office,2024-03-26,10 EQUIPMENT MAINTENANCE,SERVICES,KERRY MARINE,490393,425,350140941
BEIS,Met Office,2024-03-07,08 SOFTWARE LICENCES,TECHNOLOGY AND CIO,L3HARRIS GEOSPATIAL SOLUTIONS UK LTD,489636,75000,GB 7093026 51
BEIS,Met Office,2024-03-19,06 ACCOMMODATION,CHIEF FINANCIAL OFFICER,Landmark Information Group Ltd,483204,3.53,634509735
BEIS,Met Office,2024-03-14,06 ACCOMMODATION,CHIEF FINANCIAL OFFICER,Lars Communications Ltd,489904,5956.04,531463858
BEIS,Met Office,2024-03-14,06 ACCOMMODATION,CHIEF FINANCIAL OFFICER,Lars Communications Ltd,489904,8620.06,531463858
BEIS,Met Office,2024-03-05,11 SERVICES,CHIEF FINANCIAL OFFICER,LEASEDRIVE RENTAL MANAGEMENT LTD,487683,-97.5,733546040
BEIS,Met Office,2024-03-05,11 SERVICES,CHIEF FINANCIAL OFFICER,LEASEDRIVE RENTAL MANAGEMENT LTD,489418,684.04,733546040
BEIS,Met Office,2024-03-11,11 SERVICES,MARKETS,LHR BUSINESS SUPPORT CENTRE LTD,489717,29.44,927365404
BEIS,Met Office,2024-03-15,06 ACCOMMODATION,CHIEF FINANCIAL OFFICER,LHR BUSINESS SUPPORT CENTRE LTD,490030,3484.58,927365404
BEIS,Met Office,2024-03-19,11 SERVICES,MARKETS,LHR BUSINESS SUPPORT CENTRE LTD,490099,8.41,927365404
BEIS,Met Office,2024-03-05,11 SERVICES,CHIEF FINANCIAL OFFICER,LICENCE BUREAU LTD,489473,68.52,820219467
BEIS,Met Office,2024-03-27,08 SOFTWARE LICENCES,TECHNOLOGY AND CIO,LINBIT HA-SOLUTIONS GMBH,25174,3826.03,ATU64320988
BEIS,Met Office,2024-03-11,03 STAFF COSTS T&S,SERVICES,LINCOLN POLYTHENE / HOBSON HOLDINGS,489752,270,267249279
BEIS,Met Office,2024-03-04,STOCK,SERVICES,LINKWAVE TECHNOLOGIES LTD,489183,0,715940432
BEIS,Met Office,2024-03-04,TRADE CREDITORS,SERVICES,LINKWAVE TECHNOLOGIES LTD,489183,6348,715940432
BEIS,Met Office,2024-03-04,11 SERVICES,SERVICES,LINKWAVE TECHNOLOGIES LTD,489183,12.95,715940432
BEIS,Met Office,2024-03-28,PLANT AND EQUIPMENT,SERVICES,LOOKERS LEASING LTD,490574,5841.95,405 9783 29
BEIS,Met Office,2024-03-28,PLANT AND EQUIPMENT,SERVICES,LOOKERS LEASING LTD,490575,5841.95,405 9783 29
BEIS,Met Office,2024-03-20,12 INTERNATIONAL,MARKETS,MACITECHSY SOLUTIONS,490080,1480,-
BEIS,Met Office,2024-03-06,11 SERVICES,MARKETS,MADE TECH,489567,19885.71,938565184
BEIS,Met Office,2024-03-07,11 SERVICES,SERVICES,MADE TECH,489639,287855.36,938565184
BEIS,Met Office,2024-03-07,11 SERVICES,PROGRAMMES,MADE TECH,489640,10191.07,938565184
BEIS,Met Office,2024-03-27,11 SERVICES,PEOPLE,MAGPIE CREATIVE COMMUNICATIONS,490355,10200,117332539
BEIS,Met Office,2024-03-07,04 CONTRACTORS,PEOPLE,MATRIX SCM LIMITED,489621,299026.15,249 5734 68
BEIS,Met Office,2024-03-14,04 CONTRACTORS,PEOPLE,MATRIX SCM LIMITED,489972,235471.98,249 5734 68
BEIS,Met Office,2024-03-21,04 CONTRACTORS,PEOPLE,MATRIX SCM LIMITED,490305,248417.72,249 5734 68
BEIS,Met Office,2024-03-28,04 CONTRACTORS,PEOPLE,MATRIX SCM LIMITED,490569,241464.96,249 5734 68
BEIS,Met Office,2024-03-20,11 SERVICES,MARKETS,MCENIES GLOBAL COMMUNICATIONS LIMITED,490190,9428.25,18980736-0001
BEIS,Met Office,2024-03-18,08 SOFTWARE LICENCES,SERVICES,MERKLE ONE,490087,8022.92,GB478022835
BEIS,Met Office,2024-03-01,11 SERVICES,SERVICES,MERKLE UK THREE LTD T/A MERKLE PERISCOPIX,423020,8208.33,843316243
BEIS,Met Office,2024-03-01,11 SERVICES,SERVICES,MERKLE UK THREE LTD T/A MERKLE PERISCOPIX,489392,-8208.33,843316243
BEIS,Met Office,2024-03-06,06 ACCOMMODATION,CHIEF FINANCIAL OFFICER,Mitie Landscapes Ltd,489504,411.68,GB 416 706 654
BEIS,Met Office,2024-03-06,06 ACCOMMODATION,CHIEF FINANCIAL OFFICER,Mitie Landscapes Ltd,489504,3618.75,GB 416 706 654
BEIS,Met Office,2024-03-06,06 ACCOMMODATION,CHIEF FINANCIAL OFFICER,Mitie Landscapes Ltd,489504,389.99,GB 416 706 654
BEIS,Met Office,2024-03-06,06 ACCOMMODATION,CHIEF FINANCIAL OFFICER,Mitie Landscapes Ltd,489505,5250,GB 416 706 654
BEIS,Met Office,2024-03-01,11 SERVICES,CHIEF FINANCIAL OFFICER,MITIE SECURITY LTD,489185,23148.5,416706654
BEIS,Met Office,2024-03-01,11 SERVICES,CHIEF FINANCIAL OFFICER,MITIE SECURITY LTD,489186,11625.02,416706654
BEIS,Met Office,2024-03-08,11 SERVICES,CHIEF FINANCIAL OFFICER,MITIE SECURITY LTD,489415,9968.64,416706654
BEIS,Met Office,2024-03-27,11 SERVICES,CHIEF FINANCIAL OFFICER,MITIE SECURITY LTD,490481,11625.02,416706654
BEIS,Met Office,2024-03-27,11 SERVICES,CHIEF FINANCIAL OFFICER,MITIE SECURITY LTD,490482,23148.5,416706654
BEIS,Met Office,2024-03-22,11 SERVICES,PEOPLE,MOMENTUM INCORPORATED,490178,6660,598958541
BEIS,Met Office,2024-03-01,13 MISCELLANEOUS,OFFICE OF THE CEO,MOON CONSULTING LTD T/A MOON EXECUTIVE SEARCH,489210,7000,832 0815 52
BEIS,Met Office,2024-03-05,06 ACCOMMODATION,CHIEF FINANCIAL OFFICER,MOUNT CHARLES GROUP LTD,489341,496.27,517116274
BEIS,Met Office,2024-03-28,11 SERVICES,CHIEF FINANCIAL OFFICER,MRI SOFTWARE LIMITED,489119,-396,916220551
BEIS,Met Office,2024-03-28,11 SERVICES,CHIEF FINANCIAL OFFICER,MRI SOFTWARE LIMITED,490553,9405,916220551
BEIS,Met Office,2024-03-11,11 SERVICES,MARKETS,National Oceanography Centre,489626,7000,GB 338 5487 64
BEIS,Met Office,2024-03-15,11 SERVICES,MARKETS,National Oceanography Centre,489987,31458.63,GB 338 5487 64
BEIS,Met Office,2024-03-20,11 SERVICES,TECHNOLOGY AND CIO,NATS (EN ROUTE) PLC,490247,7179,440379456004
BEIS,Met Office,2024-03-22,TRADE CREDITORS,OTHER,NATWEST COMMERCIAL CARDS DIVISION,490232,180055.61,N/A
BEIS,Met Office,2024-03-04,07 EQUIPMENT,SERVICES,NEWBURY ELECTRONICS LTD,489297,3688.4,199294011
BEIS,Met Office,2024-03-04,07 EQUIPMENT,SERVICES,NEWBURY ELECTRONICS LTD,489297,10,199294011
BEIS,Met Office,2024-03-25,11 SERVICES,TECHNOLOGY AND CIO,NEXER DIGITAL LTD,490269,7700,908 8541 00
BEIS,Met Office,2024-03-11,11 SERVICES,SERVICES,NOC INNOVATIONS LIMITED,489574,192860,-
BEIS,Met Office,2024-03-27,11 SERVICES,MARKETS,NOC INNOVATIONS LIMITED,490523,3010,-
BEIS,Met Office,2024-03-05,13 MISCELLANEOUS,CHIEF FINANCIAL OFFICER,NORFOLK WATER LIMITED,489333,61.95,833 6292 22
BEIS,Met Office,2024-03-04,13 MISCELLANEOUS,CHIEF FINANCIAL OFFICER,NORSCOTT VENDING SERVICES LTD,489331,85,751402071
BEIS,Met Office,2024-03-01,13 MISCELLANEOUS,CHIEF FINANCIAL OFFICER,NORSK GLOBAL,489170,770.87,GB635843324
BEIS,Met Office,2024-03-01,13 MISCELLANEOUS,CHIEF FINANCIAL OFFICER,NORSK GLOBAL,489171,1535.16,GB635843324
BEIS,Met Office,2024-03-04,13 MISCELLANEOUS,CHIEF FINANCIAL OFFICER,NORSK GLOBAL,489354,135.39,GB635843324
BEIS,Met Office,2024-03-13,13 MISCELLANEOUS,CHIEF FINANCIAL OFFICER,NORSK GLOBAL,489828,1471.76,GB635843324
BEIS,Met Office,2024-03-13,13 MISCELLANEOUS,CHIEF FINANCIAL OFFICER,NORSK GLOBAL,489829,414.93,GB635843324
BEIS,Met Office,2024-03-18,13 MISCELLANEOUS,CHIEF FINANCIAL OFFICER,NORSK GLOBAL,490077,9.44,GB635843324
BEIS,Met Office,2024-03-12,06 ACCOMMODATION,CHIEF FINANCIAL OFFICER,NORTH WARWICKSHIRE BOROUGH COUNCIL,489833,835.83,N/A
BEIS,Met Office,2024-03-27,06 ACCOMMODATION,MARKETS,Northern Lighthouse Board,490480,529.93,268628908
BEIS,Met Office,2024-03-01,11 SERVICES,MARKETS,NORTHWOOD OFFICERS� MESS,489268,421.67,223 6434 83
BEIS,Met Office,2024-03-12,06 ACCOMMODATION,SERVICES,NORTHWOOD OFFICERS� MESS,489805,275.79,223 6434 83
BEIS,Met Office,2024-03-22,10 EQUIPMENT MAINTENANCE,SERVICES,Npl Management Ltd,490315,2689,207523388
BEIS,Met Office,2024-03-20,11 SERVICES,MARKETS,NSSL GLOBAL LTD,11425,43.56,725151948
BEIS,Met Office,2024-03-20,11 SERVICES,SERVICES,NSSL GLOBAL LTD,11426,55.43,725151948
BEIS,Met Office,2024-03-20,11 SERVICES,SERVICES,NSSL GLOBAL LTD,11427,71.27,725151948
BEIS,Met Office,2024-03-27,STOCK,SERVICES,OBSERVATOR INSTRUMENTS B.V.,25665,0,NL007914659B01
BEIS,Met Office,2024-03-27,STOCK,SERVICES,OBSERVATOR INSTRUMENTS B.V.,25665,0,NL007914659B01
BEIS,Met Office,2024-03-27,TRADE CREDITORS,SERVICES,OBSERVATOR INSTRUMENTS B.V.,25665,1061.72,NL007914659B01
BEIS,Met Office,2024-03-27,TRADE CREDITORS,SERVICES,OBSERVATOR INSTRUMENTS B.V.,25665,1495.98,NL007914659B01
BEIS,Met Office,2024-03-27,11 SERVICES,SERVICES,OBSERVATOR INSTRUMENTS B.V.,25665,34.19,NL007914659B01
BEIS,Met Office,2024-03-18,06 ACCOMMODATION,CHIEF FINANCIAL OFFICER,OCS Group UK Limited,476069,161247.05,GB238034379
BEIS,Met Office,2024-03-18,06 ACCOMMODATION,CHIEF FINANCIAL OFFICER,OCS Group UK Limited,490078,-161247.05,GB238034379
BEIS,Met Office,2024-03-06,11 SERVICES,CHIEF FINANCIAL OFFICER,OPEN TEXT UK LTD,489427,100,837871308
BEIS,Met Office,2024-03-05,08 SOFTWARE LICENCES,TECHNOLOGY AND CIO,ORACLE CORPORATION UK LTD,489431,6574.02,391313073
BEIS,Met Office,2024-03-11,08 SOFTWARE LICENCES,TECHNOLOGY AND CIO,ORACLE CORPORATION UK LTD,489746,3886.76,391313073
BEIS,Met Office,2024-03-11,08 SOFTWARE LICENCES,TECHNOLOGY AND CIO,ORACLE CORPORATION UK LTD,489747,1884.88,391313073
BEIS,Met Office,2024-03-11,08 SOFTWARE LICENCES,TECHNOLOGY AND CIO,ORACLE CORPORATION UK LTD,489748,19823.24,391313073
BEIS,Met Office,2024-03-11,08 SOFTWARE LICENCES,TECHNOLOGY AND CIO,ORACLE CORPORATION UK LTD,489749,5133.18,391313073
BEIS,Met Office,2024-03-11,08 SOFTWARE LICENCES,TECHNOLOGY AND CIO,ORACLE CORPORATION UK LTD,489750,2976.02,391313073
BEIS,Met Office,2024-03-11,08 SOFTWARE LICENCES,TECHNOLOGY AND CIO,ORACLE CORPORATION UK LTD,489751,1326.58,391313073
BEIS,Met Office,2024-03-11,10 EQUIPMENT MAINTENANCE,TECHNOLOGY AND CIO,ORACLE CORPORATION UK LTD,489753,34363.36,391313073
BEIS,Met Office,2024-03-11,10 EQUIPMENT MAINTENANCE,TECHNOLOGY AND CIO,ORACLE CORPORATION UK LTD,489754,6793.85,391313073
BEIS,Met Office,2024-03-11,08 SOFTWARE LICENCES,TECHNOLOGY AND CIO,ORACLE CORPORATION UK LTD,489755,3831.58,391313073
BEIS,Met Office,2024-03-11,08 SOFTWARE LICENCES,TECHNOLOGY AND CIO,ORACLE CORPORATION UK LTD,489756,13913.05,391313073
BEIS,Met Office,2024-03-27,11 SERVICES,MARKETS,OSBORNE CLARKE LLP,490545,6250,GB138187353
BEIS,Met Office,2024-03-01,13 MISCELLANEOUS,CHIEF FINANCIAL OFFICER,Parcelforce,489238,38.19,GB 243 1700 02
BEIS,Met Office,2024-03-01,13 MISCELLANEOUS,CHIEF FINANCIAL OFFICER,Parcelforce,489239,47.03,GB 243 1700 02
BEIS,Met Office,2024-03-04,13 MISCELLANEOUS,CHIEF FINANCIAL OFFICER,Parcelforce,489355,110.1,GB 243 1700 02
BEIS,Met Office,2024-03-13,13 MISCELLANEOUS,CHIEF FINANCIAL OFFICER,Parcelforce,489905,98.15,GB 243 1700 02
BEIS,Met Office,2024-03-25,11 SERVICES,PROGRAMMES,PAUL WATKISS ASSOCIATES LTD,490246,3500,869587641
BEIS,Met Office,2024-03-06,08 SOFTWARE LICENCES,TECHNOLOGY AND CIO,"PHOENIX SOFTWARE INTERNATIONAL, INC",11411,7856.61,-
BEIS,Met Office,2024-03-26,11 SERVICES,MARKETS,PLOUGHSHARE INNOVATIONS,490416,12000,878305296
BEIS,Met Office,2024-03-26,11 SERVICES,MARKETS,PLOUGHSHARE INNOVATIONS,490417,12000,878305296
BEIS,Met Office,2024-03-20,11 SERVICES,PEOPLE,PLURALSIGHT,11429,1196.01,EU826020045
BEIS,Met Office,2024-03-15,06 ACCOMMODATION,CHIEF FINANCIAL OFFICER,PLYMOUTH CITY COUNCIL NDR,489975,3992,-
BEIS,Met Office,2024-03-06,13 MISCELLANEOUS,CHIEF FINANCIAL OFFICER,POSTURITE (UK) LTD,488867,821.69,583565114
BEIS,Met Office,2024-03-14,13 MISCELLANEOUS,CHIEF FINANCIAL OFFICER,POSTURITE (UK) LTD,488868,6.2,583565114
BEIS,Met Office,2024-03-14,13 MISCELLANEOUS,CHIEF FINANCIAL OFFICER,POSTURITE (UK) LTD,488915,50,583565114
BEIS,Met Office,2024-03-06,13 MISCELLANEOUS,CHIEF FINANCIAL OFFICER,POSTURITE (UK) LTD,488916,50,583565114
BEIS,Met Office,2024-03-06,13 MISCELLANEOUS,CHIEF FINANCIAL OFFICER,POSTURITE (UK) LTD,488920,306.65,583565114
BEIS,Met Office,2024-03-06,13 MISCELLANEOUS,CHIEF FINANCIAL OFFICER,POSTURITE (UK) LTD,488955,430.78,583565114
BEIS,Met Office,2024-03-06,13 MISCELLANEOUS,CHIEF FINANCIAL OFFICER,POSTURITE (UK) LTD,489025,427.77,583565114
BEIS,Met Office,2024-03-06,13 MISCELLANEOUS,CHIEF FINANCIAL OFFICER,POSTURITE (UK) LTD,489053,82.61,583565114
BEIS,Met Office,2024-03-06,13 MISCELLANEOUS,CHIEF FINANCIAL OFFICER,POSTURITE (UK) LTD,489100,323.84,583565114
BEIS,Met Office,2024-03-14,13 MISCELLANEOUS,CHIEF FINANCIAL OFFICER,POSTURITE (UK) LTD,489117,239.04,583565114
BEIS,Met Office,2024-03-14,13 MISCELLANEOUS,CHIEF FINANCIAL OFFICER,POSTURITE (UK) LTD,489118,336.18,583565114
BEIS,Met Office,2024-03-06,13 MISCELLANEOUS,CHIEF FINANCIAL OFFICER,POSTURITE (UK) LTD,489163,70.66,583565114
BEIS,Met Office,2024-03-14,13 MISCELLANEOUS,CHIEF FINANCIAL OFFICER,POSTURITE (UK) LTD,489225,58.42,583565114
BEIS,Met Office,2024-03-06,13 MISCELLANEOUS,CHIEF FINANCIAL OFFICER,POSTURITE (UK) LTD,489226,37.98,583565114
BEIS,Met Office,2024-03-14,13 MISCELLANEOUS,CHIEF FINANCIAL OFFICER,POSTURITE (UK) LTD,489488,50,583565114
BEIS,Met Office,2024-03-14,13 MISCELLANEOUS,CHIEF FINANCIAL OFFICER,POSTURITE (UK) LTD,489564,82.61,583565114
BEIS,Met Office,2024-03-14,13 MISCELLANEOUS,CHIEF FINANCIAL OFFICER,POSTURITE (UK) LTD,489712,61.55,583565114
BEIS,Met Office,2024-03-14,13 MISCELLANEOUS,CHIEF FINANCIAL OFFICER,POSTURITE (UK) LTD,489713,37.98,583565114
BEIS,Met Office,2024-03-14,13 MISCELLANEOUS,CHIEF FINANCIAL OFFICER,POSTURITE (UK) LTD,489714,78.5,583565114
BEIS,Met Office,2024-03-14,13 MISCELLANEOUS,CHIEF FINANCIAL OFFICER,POSTURITE (UK) LTD,489763,537.9,583565114
BEIS,Met Office,2024-03-20,13 MISCELLANEOUS,CHIEF FINANCIAL OFFICER,POSTURITE (UK) LTD,489988,416.98,583565114
BEIS,Met Office,2024-03-20,13 MISCELLANEOUS,CHIEF FINANCIAL OFFICER,POSTURITE (UK) LTD,490187,313.63,583565114
BEIS,Met Office,2024-03-22,13 MISCELLANEOUS,CHIEF FINANCIAL OFFICER,POSTURITE (UK) LTD,490302,48.5,583565114
BEIS,Met Office,2024-03-22,13 MISCELLANEOUS,CHIEF FINANCIAL OFFICER,POSTURITE (UK) LTD,490303,49.95,583565114
BEIS,Met Office,2024-03-26,13 MISCELLANEOUS,CHIEF FINANCIAL OFFICER,POSTURITE (UK) LTD,490352,216.72,583565114
BEIS,Met Office,2024-03-07,06 ACCOMMODATION,CHIEF FINANCIAL OFFICER,POWER NI ENERGY LTD,489516,962.22,617518142
BEIS,Met Office,2024-03-15,06 ACCOMMODATION,CHIEF FINANCIAL OFFICER,POWER NI ENERGY LTD,489907,52.01,617518142
BEIS,Met Office,2024-03-06,13 MISCELLANEOUS,CHIEF FINANCIAL OFFICER,POWER PACKING EXPORT SERVICE,489506,1511.1,249 7326 31
BEIS,Met Office,2024-03-13,13 MISCELLANEOUS,CHIEF FINANCIAL OFFICER,POWER PACKING EXPORT SERVICE,489792,225,249 7326 31
BEIS,Met Office,2024-03-04,11 SERVICES,PROGRAMMES,PRACTICAL ACTION LIMITED,489381,3434.28,880992476
BEIS,Met Office,2024-03-22,11 SERVICES,MARKETS,Presentation Cartography Ltd,490047,49790,-
BEIS,Met Office,2024-03-18,11 SERVICES,SERVICES,PURPLE GRIFFON LIMITED,488440,4000,804 8897 90
BEIS,Met Office,2024-03-11,11 SERVICES,TECHNOLOGY AND CIO,QA LTD,489348,6450,864455303
BEIS,Met Office,2024-03-08,11 SERVICES,TECHNOLOGY AND CIO,QA LTD,489637,6600,864455303
BEIS,Met Office,2024-03-18,11 SERVICES,TECHNOLOGY AND CIO,QA LTD,489808,6718.95,864455303
BEIS,Met Office,2024-03-12,11 SERVICES,TECHNOLOGY AND CIO,QA LTD,489809,12000,864455303
BEIS,Met Office,2024-03-12,11 SERVICES,TECHNOLOGY AND CIO,QA LTD,489810,12000,864455303
BEIS,Met Office,2024-03-13,11 SERVICES,TECHNOLOGY AND CIO,QA LTD,489811,6300,864455303
BEIS,Met Office,2024-03-18,11 SERVICES,TECHNOLOGY AND CIO,QA LTD,489812,4960,864455303
BEIS,Met Office,2024-03-12,11 SERVICES,TECHNOLOGY AND CIO,QA LTD,489813,6000,864455303
BEIS,Met Office,2024-03-12,11 SERVICES,TECHNOLOGY AND CIO,QA LTD,489814,4500,864455303
BEIS,Met Office,2024-03-12,11 SERVICES,TECHNOLOGY AND CIO,QA LTD,489815,4800,864455303
BEIS,Met Office,2024-03-12,11 SERVICES,TECHNOLOGY AND CIO,QA LTD,489816,4800,864455303
BEIS,Met Office,2024-03-12,11 SERVICES,TECHNOLOGY AND CIO,QA LTD,489817,5700,864455303
BEIS,Met Office,2024-03-12,11 SERVICES,TECHNOLOGY AND CIO,QA LTD,489818,5400,864455303
BEIS,Met Office,2024-03-12,11 SERVICES,TECHNOLOGY AND CIO,QA LTD,489819,5400,864455303
BEIS,Met Office,2024-03-20,11 SERVICES,TECHNOLOGY AND CIO,QA LTD,489820,6300,864455303
BEIS,Met Office,2024-03-12,11 SERVICES,TECHNOLOGY AND CIO,QA LTD,489821,6000,864455303
BEIS,Met Office,2024-03-13,11 SERVICES,TECHNOLOGY AND CIO,QA LTD,489822,6300,864455303
BEIS,Met Office,2024-03-22,11 SERVICES,TECHNOLOGY AND CIO,QA LTD,489925,6600,864455303
BEIS,Met Office,2024-03-25,11 SERVICES,TECHNOLOGY AND CIO,QA LTD,490225,6300,864455303
BEIS,Met Office,2024-03-01,07 EQUIPMENT,SERVICES,QUASAR MICROWAVE TECHNOLOGY LTD,489169,10463.51,209385203
BEIS,Met Office,2024-03-28,06 ACCOMMODATION,CHIEF FINANCIAL OFFICER,RAINBOW OFFICE DESIGN LTD,490548,4946.4,769523587
BEIS,Met Office,2024-03-28,06 ACCOMMODATION,CHIEF FINANCIAL OFFICER,RAINBOW OFFICE DESIGN LTD,490549,3323.6,769523587
BEIS,Met Office,2024-03-06,11 SERVICES,PROGRAMMES,RAINMAKER SOLUTIONS LTD,488903,559.22,-
BEIS,Met Office,2024-03-06,11 SERVICES,PROGRAMMES,RAINMAKER SOLUTIONS LTD,488903,18375,-
BEIS,Met Office,2024-03-06,11 SERVICES,PROGRAMMES,RAINMAKER SOLUTIONS LTD,488903,17875,-
BEIS,Met Office,2024-03-06,11 SERVICES,MARKETS,RAINMAKER SOLUTIONS LTD,489466,30000,-
BEIS,Met Office,2024-03-06,11 SERVICES,PROGRAMMES,RAINMAKER SOLUTIONS LTD,489562,4250,-
BEIS,Met Office,2024-03-06,11 SERVICES,PROGRAMMES,RAINMAKER SOLUTIONS LTD,489562,14500,-
BEIS,Met Office,2024-03-13,12 INTERNATIONAL,MARKETS,REDACTED � PERSONAL DATA,11435,4328.5,-
BEIS,Met Office,2024-03-27,12 INTERNATIONAL,MARKETS,REDACTED � PERSONAL DATA,11469,2863.93,-
BEIS,Met Office,2024-03-06,06 ACCOMMODATION,CHIEF FINANCIAL OFFICER,REDACTED � PERSONAL DATA,489515,17339,233585557
BEIS,Met Office,2024-03-07,11 SERVICES,SERVICES,REDACTED � PERSONAL DATA,489619,130.24,-
BEIS,Met Office,2024-03-20,06 ACCOMMODATION,CHIEF FINANCIAL OFFICER,REDACTED � PERSONAL DATA,489657,520,-
BEIS,Met Office,2024-03-14,11 SERVICES,PEOPLE,REDACTED � PERSONAL DATA,489859,4749,143043312
BEIS,Met Office,2024-03-14,11 SERVICES,PEOPLE,REDACTED � PERSONAL DATA,489860,135,143043312
BEIS,Met Office,2024-03-14,11 SERVICES,PEOPLE,REDACTED � PERSONAL DATA,489861,472.5,143043312
BEIS,Met Office,2024-03-14,11 SERVICES,PEOPLE,REDACTED � PERSONAL DATA,489862,1921.5,143043312
BEIS,Met Office,2024-03-19,11 SERVICES,CHIEF FINANCIAL OFFICER,REDACTED � PERSONAL DATA,490095,720,-
BEIS,Met Office,2024-03-20,06 ACCOMMODATION,CHIEF FINANCIAL OFFICER,REDACTED � PERSONAL DATA,490114,4185.25,001874305
BEIS,Met Office,2024-03-22,13 MISCELLANEOUS,SERVICES,REDACTED � PERSONAL DATA,490245,2897,NOTVATREG
BEIS,Met Office,2024-03-27,11 SERVICES,CHIEF FINANCIAL OFFICER,REDACTED � PERSONAL DATA,490488,204,729159704
BEIS,Met Office,2024-03-07,11 SERVICES,TECHNOLOGY AND CIO,REDROCK CONSULTING LIMITED,489478,16800,862 2477 15
BEIS,Met Office,2024-03-15,11 SERVICES,PEOPLE,RESTORE RECORDS MANAGEMENT,489729,13.89,843 863011
BEIS,Met Office,2024-03-19,11 SERVICES,PEOPLE,RESULTS CATALYSTS LTD,490098,1200,811 9181 42
BEIS,Met Office,2024-03-15,13 MISCELLANEOUS,CHIEF FINANCIAL OFFICER,RICHARD JAMES INTERNATIONAL LIMITED,489915,186.95,567 5529 01
BEIS,Met Office,2024-03-15,13 MISCELLANEOUS,CHIEF FINANCIAL OFFICER,RICHARD JAMES INTERNATIONAL LIMITED,489926,151.95,567 5529 01
BEIS,Met Office,2024-03-15,13 MISCELLANEOUS,CHIEF FINANCIAL OFFICER,RICHARD JAMES INTERNATIONAL LIMITED,489927,169.15,567 5529 01
BEIS,Met Office,2024-03-15,13 MISCELLANEOUS,CHIEF FINANCIAL OFFICER,RICHARD JAMES INTERNATIONAL LIMITED,489928,177.75,567 5529 01
BEIS,Met Office,2024-03-15,13 MISCELLANEOUS,CHIEF FINANCIAL OFFICER,RICHARD JAMES INTERNATIONAL LIMITED,489929,908.75,567 5529 01
BEIS,Met Office,2024-03-22,13 MISCELLANEOUS,CHIEF FINANCIAL OFFICER,RICHARD JAMES INTERNATIONAL LIMITED,490292,220.95,567 5529 01
BEIS,Met Office,2024-03-14,06 ACCOMMODATION,CHIEF FINANCIAL OFFICER,RIVER RIDGE,489716,132.88,176286083
BEIS,Met Office,2024-03-26,11 SERVICES,PEOPLE,RIVER TRAINING AND HR,490356,800,-
BEIS,Met Office,2024-03-06,11 SERVICES,MARKETS,ROWE IT LTD,489496,3151.04,924964394
BEIS,Met Office,2024-03-06,11 SERVICES,PROGRAMMES,ROWE IT LTD,489496,18118.46,924964394
BEIS,Met Office,2024-03-06,11 SERVICES,PROGRAMMES,ROWE IT LTD,489496,22057.26,924964394
BEIS,Met Office,2024-03-06,11 SERVICES,PROGRAMMES,ROWE IT LTD,489496,1575.52,924964394
BEIS,Met Office,2024-03-06,11 SERVICES,PROGRAMMES,ROWE IT LTD,489496,4726.56,924964394
BEIS,Met Office,2024-03-06,11 SERVICES,PROGRAMMES,ROWE IT LTD,489496,66171.76,924964394
BEIS,Met Office,2024-03-06,11 SERVICES,PROGRAMMES,ROWE IT LTD,489496,55143.15,924964394
BEIS,Met Office,2024-03-08,11 SERVICES,PROGRAMMES,ROWE IT LTD,489497,15750,924964394
BEIS,Met Office,2024-03-08,11 SERVICES,MARKETS,ROWE IT LTD,489622,39925,924964394
BEIS,Met Office,2024-03-07,11 SERVICES,MARKETS,ROWE IT LTD,489623,4790,924964394
BEIS,Met Office,2024-03-07,11 SERVICES,PROGRAMMES,ROWE IT LTD,489624,116747.5,924964394
BEIS,Met Office,2024-03-20,11 SERVICES,TECHNOLOGY AND CIO,ROWE IT LTD,489823,31100,924964394
BEIS,Met Office,2024-03-20,11 SERVICES,MARKETS,ROWE IT LTD,490117,1285.9,924964394
BEIS,Met Office,2024-03-20,11 SERVICES,MARKETS,ROWE IT LTD,490117,78.67,924964394
BEIS,Met Office,2024-03-20,11 SERVICES,PROGRAMMES,ROWE IT LTD,490117,7392.97,924964394
BEIS,Met Office,2024-03-20,11 SERVICES,PROGRAMMES,ROWE IT LTD,490117,9000.35,924964394
BEIS,Met Office,2024-03-20,11 SERVICES,PROGRAMMES,ROWE IT LTD,490117,642.96,924964394
BEIS,Met Office,2024-03-20,11 SERVICES,PROGRAMMES,ROWE IT LTD,490117,1928.86,924964394
BEIS,Met Office,2024-03-20,11 SERVICES,PROGRAMMES,ROWE IT LTD,490117,27002.08,924964394
BEIS,Met Office,2024-03-20,11 SERVICES,PROGRAMMES,ROWE IT LTD,490117,22501.38,924964394
BEIS,Met Office,2024-03-20,11 SERVICES,PROGRAMMES,ROWE IT LTD,490117,4194.77,924964394
BEIS,Met Office,2024-03-20,11 SERVICES,SCIENCE,Rsk Adas Ltd,490226,8250,256435886
BEIS,Met Office,2024-03-20,11 SERVICES,SCIENCE,Rsk Adas Ltd,490227,14000,256435886
BEIS,Met Office,2024-03-12,06 ACCOMMODATION,CHIEF FINANCIAL OFFICER,SAFESTORE LTD,489296,-1071.5,722887607
BEIS,Met Office,2024-03-12,06 ACCOMMODATION,CHIEF FINANCIAL OFFICER,SAFESTORE LTD,489762,2484.11,722887607
BEIS,Met Office,2024-03-04,11 SERVICES,MARKETS,SAVANTA GROUP LTD,489349,4500,GB 749 7521 90
BEIS,Met Office,2024-03-07,11 SERVICES,SCIENCE,SCIENCE & TECHNOLOGY FACILITIES COUNCIL,489337,150000,287461957
BEIS,Met Office,2024-03-05,11 SERVICES,PROGRAMMES,SCIENCE & TECHNOLOGY FACILITIES COUNCIL,489338,14307.94,287461957
BEIS,Met Office,2024-03-11,07 EQUIPMENT,MARKETS,SCIENCE & TECHNOLOGY FACILITIES COUNCIL,489629,13333.34,287461957
BEIS,Met Office,2024-03-11,07 EQUIPMENT,SCIENCE,SCIENCE & TECHNOLOGY FACILITIES COUNCIL,489629,6666.66,287461957
BEIS,Met Office,2024-03-19,11 SERVICES,PROGRAMMES,SCIENCE & TECHNOLOGY FACILITIES COUNCIL,490045,33365,287461957
BEIS,Met Office,2024-03-15,11 SERVICES,PROGRAMMES,SCIENCE & TECHNOLOGY FACILITIES COUNCIL,490046,17489,287461957
BEIS,Met Office,2024-03-20,11 SERVICES,PROGRAMMES,SCIENCE & TECHNOLOGY FACILITIES COUNCIL,490188,14898,287461957
BEIS,Met Office,2024-03-20,11 SERVICES,PROGRAMMES,SCIENCE & TECHNOLOGY FACILITIES COUNCIL,490189,24294,287461957
BEIS,Met Office,2024-03-21,11 SERVICES,PROGRAMMES,SCIENCE & TECHNOLOGY FACILITIES COUNCIL,490244,24850,287461957
BEIS,Met Office,2024-03-28,11 SERVICES,PROGRAMMES,SCIENCE & TECHNOLOGY FACILITIES COUNCIL,490418,33334,287461957
BEIS,Met Office,2024-03-28,11 SERVICES,SCIENCE,SCIENCE & TECHNOLOGY FACILITIES COUNCIL,490522,90000,287461957
BEIS,Met Office,2024-03-11,06 ACCOMMODATION,CHIEF FINANCIAL OFFICER,Scottish Government,484808,26062,888842551
BEIS,Met Office,2024-03-04,11 SERVICES,PROGRAMMES,SERVICENOW UK LTD.,489262,486,-
BEIS,Met Office,2024-03-07,06 ACCOMMODATION,CHIEF FINANCIAL OFFICER,Severn Trent Water Ltd,489517,943.13,486985565
BEIS,Met Office,2024-03-27,06 ACCOMMODATION,CHIEF FINANCIAL OFFICER,SHARED ACCESS LTD,490426,7759.29,920672730
BEIS,Met Office,2024-03-14,06 ACCOMMODATION,CHIEF FINANCIAL OFFICER,SHETLAND CLEANING SERVICES,489916,831.13,430028404
BEIS,Met Office,2024-03-28,06 ACCOMMODATION,CHIEF FINANCIAL OFFICER,Shetland Islands Council,483693,-17.43,267858304
BEIS,Met Office,2024-03-28,06 ACCOMMODATION,CHIEF FINANCIAL OFFICER,Shetland Islands Council,490565,1089.4,267858304
BEIS,Met Office,2024-03-25,06 ACCOMMODATION,CHIEF FINANCIAL OFFICER,SHROPSHIRE COUNCIL,490256,12849.25,-
BEIS,Met Office,2024-03-20,06 ACCOMMODATION,CHIEF FINANCIAL OFFICER,SIGNS EXPRESS (EXETER),490195,78.42,631397439
BEIS,Met Office,2024-03-27,FIXTURE & FITTINGS,CHIEF FINANCIAL OFFICER,SIGNS EXPRESS (EXETER),490299,48.62,631397439
BEIS,Met Office,2024-03-27,FIXTURE & FITTINGS,CHIEF FINANCIAL OFFICER,SIGNS EXPRESS (EXETER),490299,90,631397439
BEIS,Met Office,2024-03-27,FIXTURE & FITTINGS,CHIEF FINANCIAL OFFICER,SIGNS EXPRESS (EXETER),490299,48.62,631397439
BEIS,Met Office,2024-03-27,FIXTURE & FITTINGS,CHIEF FINANCIAL OFFICER,SIGNS EXPRESS (EXETER),490299,1731.54,631397439
BEIS,Met Office,2024-03-27,FIXTURE & FITTINGS,CHIEF FINANCIAL OFFICER,SIGNS EXPRESS (EXETER),490299,48.62,631397439
BEIS,Met Office,2024-03-13,11 SERVICES,SERVICES,SIMILARWEBB UK LTD,487139,51500,GB174984654
BEIS,Met Office,2024-03-19,11 SERVICES,SERVICES,SKYGUARD LTD T/A PEOPLESAFE,481701,782.01,285808854
BEIS,Met Office,2024-03-19,11 SERVICES,SERVICES,SKYGUARD LTD T/A PEOPLESAFE,490197,-782.01,285808854
BEIS,Met Office,2024-03-25,STOCK,SERVICES,Skyview Systems Ltd,490350,0,594519109
BEIS,Met Office,2024-03-25,STOCK,SERVICES,Skyview Systems Ltd,490350,0,594519109
BEIS,Met Office,2024-03-25,TRADE CREDITORS,SERVICES,Skyview Systems Ltd,490350,700,594519109
BEIS,Met Office,2024-03-25,TRADE CREDITORS,SERVICES,Skyview Systems Ltd,490350,5649,594519109
BEIS,Met Office,2024-03-25,11 SERVICES,SERVICES,Skyview Systems Ltd,490350,85,594519109
BEIS,Met Office,2024-03-04,13 MISCELLANEOUS,CHIEF FINANCIAL OFFICER,SMAA DEVELOPMENTS LTD,470065,33.83,314 3660 27
BEIS,Met Office,2024-03-04,13 MISCELLANEOUS,CHIEF FINANCIAL OFFICER,SMAA DEVELOPMENTS LTD,489425,-33.83,314 3660 27
BEIS,Met Office,2024-03-20,11 SERVICES,MARKETS,Smhi,25630,5083.21,SE202100069601
BEIS,Met Office,2024-03-04,11 SERVICES,MARKETS,SOFTWIRE TECHNOLOGY LIMITED,489388,3380,752 1253 57
BEIS,Met Office,2024-03-04,11 SERVICES,MARKETS,SOFTWIRE TECHNOLOGY LIMITED,489389,14890,752 1253 57
BEIS,Met Office,2024-03-11,11 SERVICES,SERVICES,SOFTWIRE TECHNOLOGY LIMITED,489760,4200,752 1253 57
BEIS,Met Office,2024-03-22,11 SERVICES,PEOPLE,SOURCE COACHING CONSULTANCY,490301,1775,170422048
BEIS,Met Office,2024-03-27,11 SERVICES,SCIENCE,SOUTH AFRICAN WEATHER SERVICES,490334,780.14,-
BEIS,Met Office,2024-03-27,11 SERVICES,PROGRAMMES,SOUTH AFRICAN WEATHER SERVICES,490419,20000,-
BEIS,Met Office,2024-03-21,06 ACCOMMODATION,CHIEF FINANCIAL OFFICER,SOUTH OXFORDSHIRE DISTRICT COUNCIL,490265,2305.38,-
BEIS,Met Office,2024-03-14,06 ACCOMMODATION,CHIEF FINANCIAL OFFICER,South West Water Ltd,489086,-13,236873674
BEIS,Met Office,2024-03-14,06 ACCOMMODATION,CHIEF FINANCIAL OFFICER,South West Water Ltd,489732,4535.15,236873674
BEIS,Met Office,2024-03-21,06 ACCOMMODATION,CHIEF FINANCIAL OFFICER,South West Water Ltd,490267,1025.66,236873674
BEIS,Met Office,2024-03-28,06 ACCOMMODATION,CHIEF FINANCIAL OFFICER,South West Water Ltd,490550,62.22,236873674
BEIS,Met Office,2024-03-21,07 EQUIPMENT,TECHNOLOGY AND CIO,SPECIALIST COMPUTER CENTRES,475252,2336,313651680
BEIS,Met Office,2024-03-06,08 SOFTWARE LICENCES,TECHNOLOGY AND CIO,SPECIALIST COMPUTER CENTRES,485029,4600,313651680
BEIS,Met Office,2024-03-04,08 SOFTWARE LICENCES,TECHNOLOGY AND CIO,SPECIALIST COMPUTER CENTRES,489176,-4600,313651680
BEIS,Met Office,2024-03-06,11 SERVICES,TECHNOLOGY AND CIO,SPECIALIST COMPUTER CENTRES,489375,-70.12,313651680
BEIS,Met Office,2024-03-04,08 SOFTWARE LICENCES,PROGRAMMES,SPECIALIST COMPUTER CENTRES,489397,113288.4,313651680
BEIS,Met Office,2024-03-06,08 SOFTWARE LICENCES,PROGRAMMES,SPECIALIST COMPUTER CENTRES,489398,5421.15,313651680
BEIS,Met Office,2024-03-06,08 SOFTWARE LICENCES,PROGRAMMES,SPECIALIST COMPUTER CENTRES,489398,996.75,313651680
BEIS,Met Office,2024-03-06,08 SOFTWARE LICENCES,PROGRAMMES,SPECIALIST COMPUTER CENTRES,489398,1100.45,313651680
BEIS,Met Office,2024-03-06,08 SOFTWARE LICENCES,PROGRAMMES,SPECIALIST COMPUTER CENTRES,489398,3762.15,313651680
BEIS,Met Office,2024-03-06,08 SOFTWARE LICENCES,TECHNOLOGY AND CIO,SPECIALIST COMPUTER CENTRES,489398,99944.07,313651680
BEIS,Met Office,2024-03-06,08 SOFTWARE LICENCES,TECHNOLOGY AND CIO,SPECIALIST COMPUTER CENTRES,489398,74401.68,313651680
BEIS,Met Office,2024-03-06,08 SOFTWARE LICENCES,TECHNOLOGY AND CIO,SPECIALIST COMPUTER CENTRES,489398,114912,313651680
BEIS,Met Office,2024-03-06,08 SOFTWARE LICENCES,TECHNOLOGY AND CIO,SPECIALIST COMPUTER CENTRES,489398,801862.06,313651680
BEIS,Met Office,2024-03-06,08 SOFTWARE LICENCES,TECHNOLOGY AND CIO,SPECIALIST COMPUTER CENTRES,489398,173581.16,313651680
BEIS,Met Office,2024-03-06,08 SOFTWARE LICENCES,TECHNOLOGY AND CIO,SPECIALIST COMPUTER CENTRES,489398,11016.48,313651680
BEIS,Met Office,2024-03-06,08 SOFTWARE LICENCES,TECHNOLOGY AND CIO,SPECIALIST COMPUTER CENTRES,489398,169866.26,313651680
BEIS,Met Office,2024-03-06,08 SOFTWARE LICENCES,TECHNOLOGY AND CIO,SPECIALIST COMPUTER CENTRES,489398,57456,313651680
BEIS,Met Office,2024-03-06,11 SERVICES,SERVICES,SPECIALIST COMPUTER CENTRES,489398,50,313651680
BEIS,Met Office,2024-03-11,11 SERVICES,TECHNOLOGY AND CIO,SPECIALIST COMPUTER CENTRES,489632,70.12,313651680
BEIS,Met Office,2024-03-21,07 EQUIPMENT,TECHNOLOGY AND CIO,SPECIALIST COMPUTER CENTRES,489798,-2336,313651680
BEIS,Met Office,2024-03-21,11 SERVICES,TECHNOLOGY AND CIO,SPECIALIST COMPUTER CENTRES,490295,30221.72,313651680
BEIS,Met Office,2024-03-06,11 SERVICES,MARKETS,SPOKE (INTERACTIVE) LTD,489508,770,840156451
BEIS,Met Office,2024-03-27,12 INTERNATIONAL,MARKETS,SPREP,11473,79331.02,-
BEIS,Met Office,2024-03-20,13 MISCELLANEOUS,SERVICES,SPRINGER CUSTOMER SERVICE CENTER GMBH,25638,9637.64,209719094
BEIS,Met Office,2024-03-15,11 SERVICES,PEOPLE,SPRINGPOD / THE EDUCATION HUB GROUP LTD,489937,850,GB287276850
BEIS,Met Office,2024-03-15,11 SERVICES,TECHNOLOGY AND CIO,SSE CONTRACTING LTD,489994,7963.46,382894546
BEIS,Met Office,2024-03-15,11 SERVICES,SERVICES,STAGE ENGAGE LTD,490008,607.82,GB120210593
BEIS,Met Office,2024-03-15,11 SERVICES,SERVICES,STAGE ENGAGE LTD,490009,61.24,GB120210593
BEIS,Met Office,2024-03-15,11 SERVICES,SERVICES,STAGE ENGAGE LTD,490009,5625.26,GB120210593
BEIS,Met Office,2024-03-15,11 SERVICES,SERVICES,STAGE ENGAGE LTD,490009,1715.6,GB120210593
BEIS,Met Office,2024-03-15,11 SERVICES,SERVICES,STAGE ENGAGE LTD,490009,1691.49,GB120210593
BEIS,Met Office,2024-03-18,03 STAFF COSTS T&S,SERVICES,STORAGE FACTORY,490094,185,130 5237 12
BEIS,Met Office,2024-03-14,11 SERVICES,CHIEF FINANCIAL OFFICER,SURE SOUTH ATLANTIC LTD,489854,2124.59,NOVATREG
BEIS,Met Office,2024-03-18,11 SERVICES,CHIEF FINANCIAL OFFICER,SURE SOUTH ATLANTIC LTD,489990,6478,-
BEIS,Met Office,2024-03-15,11 SERVICES,CHIEF FINANCIAL OFFICER,SURE SOUTH ATLANTIC LTD,489991,4801,-
BEIS,Met Office,2024-03-13,07 EQUIPMENT,SERVICES,SWALE TECHNOLOGIES LTD,11453,2011.98,530846451
BEIS,Met Office,2024-03-13,07 EQUIPMENT,SERVICES,SWALE TECHNOLOGIES LTD,11454,102823.43,530846451
BEIS,Met Office,2024-03-13,07 EQUIPMENT,SERVICES,SWALE TECHNOLOGIES LTD,11455,79907.18,530846451
BEIS,Met Office,2024-03-13,07 EQUIPMENT,SERVICES,SWALE TECHNOLOGIES LTD,11455,41251.62,530846451
BEIS,Met Office,2024-03-13,07 EQUIPMENT,SERVICES,SWALE TECHNOLOGIES LTD,11456,39953.59,530846451
BEIS,Met Office,2024-03-13,07 EQUIPMENT,SERVICES,SWALE TECHNOLOGIES LTD,11456,27749.34,530846451
BEIS,Met Office,2024-03-07,11 SERVICES,MARKETS,SWANTECH LOGISTICS LTD,489477,2966.4,769332401
BEIS,Met Office,2024-03-28,12 INTERNATIONAL,MARKETS,SWANTECH LOGISTICS LTD,490539,1609.02,769332401
BEIS,Met Office,2024-03-27,07 EQUIPMENT,PEOPLE,SWANTECH LOGISTICS LTD,490540,3265.48,769332401
BEIS,Met Office,2024-03-27,11 SERVICES,PEOPLE,SWANTECH LOGISTICS LTD,490541,2212.42,769332401
BEIS,Met Office,2024-03-27,11 SERVICES,CHIEF FINANCIAL OFFICER,SWISSCOM (SCHWEIZ) AG,489731,99.57,-
BEIS,Met Office,2024-03-13,11 SERVICES,CHIEF FINANCIAL OFFICER,TELEFONICA O2 UK LIMITED,489764,4073.44,778603785
BEIS,Met Office,2024-03-20,11 SERVICES,CHIEF FINANCIAL OFFICER,TELIA FINLAND OYJ,25662,188.18,FI14756079
BEIS,Met Office,2024-03-01,11 SERVICES,PEOPLE,THE STRENGTHS PEOPLE LTD,489173,3240,206868488
BEIS,Met Office,2024-03-15,FIXTURE & FITTINGS,CHIEF FINANCIAL OFFICER,THORLUX LIGHTING,489507,-10963.19,GB 109 939 440
BEIS,Met Office,2024-03-15,FIXTURE & FITTINGS,CHIEF FINANCIAL OFFICER,THORLUX LIGHTING,489858,10963.19,GB 109 939 440
BEIS,Met Office,2024-03-15,11 SERVICES,CHIEF FINANCIAL OFFICER,THORLUX LIGHTING,489989,237.22,GB 109 939 440
BEIS,Met Office,2024-03-11,08 SOFTWARE LICENCES,CHIEF FINANCIAL OFFICER,TIMEWATCH PLC,488786,12000,461555250
BEIS,Met Office,2024-03-11,08 SOFTWARE LICENCES,CHIEF FINANCIAL OFFICER,TIMEWATCH PLC,488786,177650,461555250
BEIS,Met Office,2024-03-12,08 SOFTWARE LICENCES,CHIEF FINANCIAL OFFICER,TIMEWATCH PLC,489757,8250,461555250
BEIS,Met Office,2024-03-27,08 SOFTWARE LICENCES,CHIEF FINANCIAL OFFICER,TIMEWATCH PLC,490544,2750,461555250
BEIS,Met Office,2024-03-06,06 ACCOMMODATION,CHIEF FINANCIAL OFFICER,TOP RANK CLEANING SERVICES LTD,489489,950.56,-
BEIS,Met Office,2024-03-19,06 ACCOMMODATION,CHIEF FINANCIAL OFFICER,TOTAL GAS & POWER LIMITED,489992,16616.66,689638949
BEIS,Met Office,2024-03-19,06 ACCOMMODATION,CHIEF FINANCIAL OFFICER,TOTAL GAS & POWER LIMITED,489993,1066.55,689638949
BEIS,Met Office,2024-03-20,12 INTERNATIONAL,MARKETS,TOTEX CORPORATION,485893,29.1,-
BEIS,Met Office,2024-03-20,12 INTERNATIONAL,MARKETS,TOTEX CORPORATION,485893,3560,-
BEIS,Met Office,2024-03-20,12 INTERNATIONAL,MARKETS,TOTEX CORPORATION,485893,1460,-
BEIS,Met Office,2024-03-11,11 SERVICES,PEOPLE,TP HEALTH LTD,489715,2068,883064608
BEIS,Met Office,2024-03-06,11 SERVICES,TECHNOLOGY AND CIO,TRIAD GROUP PLC,489502,275.52,GB492999762
BEIS,Met Office,2024-03-06,11 SERVICES,TECHNOLOGY AND CIO,TRIAD GROUP PLC,489558,111005,GB492999762
BEIS,Met Office,2024-03-21,06 ACCOMMODATION,CHIEF FINANCIAL OFFICER,Trinity House,490234,497,243120414
BEIS,Met Office,2024-03-21,06 ACCOMMODATION,CHIEF FINANCIAL OFFICER,Trinity House,490235,497,243120414
BEIS,Met Office,2024-03-06,11 SERVICES,PROGRAMMES,UCAR INCOMING PAYMENTS,11419,4111.56,-
BEIS,Met Office,2024-03-01,11 SERVICES,PROGRAMMES,UK ATOMIC ENERGY AUTHORITY,478180,19396,GB570101391
BEIS,Met Office,2024-03-25,11 SERVICES,PROGRAMMES,UK ATOMIC ENERGY AUTHORITY,484969,26.15,GB570101391
BEIS,Met Office,2024-03-25,11 SERVICES,PROGRAMMES,UK ATOMIC ENERGY AUTHORITY,484970,107805.23,GB570101391
BEIS,Met Office,2024-03-25,11 SERVICES,PROGRAMMES,UK ATOMIC ENERGY AUTHORITY,484973,6961.33,GB570101391
BEIS,Met Office,2024-03-21,11 SERVICES,PROGRAMMES,UK ATOMIC ENERGY AUTHORITY,485236,8150.25,GB570101391
BEIS,Met Office,2024-03-21,11 SERVICES,PROGRAMMES,UK ATOMIC ENERGY AUTHORITY,485237,10186,GB570101391
BEIS,Met Office,2024-03-22,11 SERVICES,PROGRAMMES,UK ATOMIC ENERGY AUTHORITY,485238,5075,GB570101391
BEIS,Met Office,2024-03-21,11 SERVICES,PROGRAMMES,UK ATOMIC ENERGY AUTHORITY,485239,25465,GB570101391
BEIS,Met Office,2024-03-22,11 SERVICES,PROGRAMMES,UK ATOMIC ENERGY AUTHORITY,485240,5075,GB570101391
BEIS,Met Office,2024-03-21,11 SERVICES,PROGRAMMES,UK ATOMIC ENERGY AUTHORITY,485241,26.15,GB570101391
BEIS,Met Office,2024-03-22,11 SERVICES,PROGRAMMES,UK ATOMIC ENERGY AUTHORITY,485242,107805.23,GB570101391
BEIS,Met Office,2024-03-21,11 SERVICES,PROGRAMMES,UK ATOMIC ENERGY AUTHORITY,485243,6961.33,GB570101391
BEIS,Met Office,2024-03-07,11 SERVICES,PROGRAMMES,UK ATOMIC ENERGY AUTHORITY,485244,-37,GB570101391
BEIS,Met Office,2024-03-25,11 SERVICES,PROGRAMMES,UK ATOMIC ENERGY AUTHORITY,485246,-107831.38,GB570101391
BEIS,Met Office,2024-03-25,11 SERVICES,PROGRAMMES,UK ATOMIC ENERGY AUTHORITY,485246,-6961.33,GB570101391
BEIS,Met Office,2024-03-25,11 SERVICES,PROGRAMMES,UK ATOMIC ENERGY AUTHORITY,485684,13981.94,GB570101391
BEIS,Met Office,2024-03-07,11 SERVICES,PROGRAMMES,UK ATOMIC ENERGY AUTHORITY,489482,5000,GB570101391
BEIS,Met Office,2024-03-21,11 SERVICES,PROGRAMMES,UK ATOMIC ENERGY AUTHORITY,489484,-50825.73,GB570101391
BEIS,Met Office,2024-03-21,11 SERVICES,PROGRAMMES,UK ATOMIC ENERGY AUTHORITY,489485,-117955.23,GB570101391
BEIS,Met Office,2024-03-07,11 SERVICES,PROGRAMMES,UK ATOMIC ENERGY AUTHORITY,489486,13981.94,GB570101391
BEIS,Met Office,2024-03-21,11 SERVICES,PROGRAMMES,UK ATOMIC ENERGY AUTHORITY,489824,-18152,GB570101391
BEIS,Met Office,2024-03-21,11 SERVICES,PROGRAMMES,UK ATOMIC ENERGY AUTHORITY,489826,13981.94,GB570101391
BEIS,Met Office,2024-03-21,11 SERVICES,PROGRAMMES,UK ATOMIC ENERGY AUTHORITY,489827,-18152,GB570101391
BEIS,Met Office,2024-03-21,11 SERVICES,PROGRAMMES,UK ATOMIC ENERGY AUTHORITY,490029,12454,GB570101391
BEIS,Met Office,2024-03-21,11 SERVICES,PROGRAMMES,UK ATOMIC ENERGY AUTHORITY,490119,15000,GB570101391
BEIS,Met Office,2024-03-21,11 SERVICES,PROGRAMMES,UK ATOMIC ENERGY AUTHORITY,490120,30000,GB570101391
BEIS,Met Office,2024-03-21,11 SERVICES,PROGRAMMES,UK ATOMIC ENERGY AUTHORITY,490121,7341,GB570101391
BEIS,Met Office,2024-03-21,11 SERVICES,PROGRAMMES,UK ATOMIC ENERGY AUTHORITY,490125,10971,GB570101391
BEIS,Met Office,2024-03-21,11 SERVICES,PROGRAMMES,UK ATOMIC ENERGY AUTHORITY,490126,7341,GB570101391
BEIS,Met Office,2024-03-21,11 SERVICES,PROGRAMMES,UK ATOMIC ENERGY AUTHORITY,490127,10971,GB570101391
BEIS,Met Office,2024-03-21,11 SERVICES,PROGRAMMES,UK ATOMIC ENERGY AUTHORITY,490128,7775,GB570101391
BEIS,Met Office,2024-03-21,11 SERVICES,PROGRAMMES,UK ATOMIC ENERGY AUTHORITY,490129,7775,GB570101391
BEIS,Met Office,2024-03-21,11 SERVICES,PROGRAMMES,UK ATOMIC ENERGY AUTHORITY,490130,7775,GB570101391
BEIS,Met Office,2024-03-21,11 SERVICES,PROGRAMMES,UK ATOMIC ENERGY AUTHORITY,490131,7775,GB570101391
BEIS,Met Office,2024-03-21,11 SERVICES,PROGRAMMES,UK ATOMIC ENERGY AUTHORITY,490132,27911,GB570101391
BEIS,Met Office,2024-03-21,11 SERVICES,PROGRAMMES,UK ATOMIC ENERGY AUTHORITY,490133,34861.34,GB570101391
BEIS,Met Office,2024-03-21,11 SERVICES,PROGRAMMES,UK ATOMIC ENERGY AUTHORITY,490157,34861.34,GB570101391
BEIS,Met Office,2024-03-21,11 SERVICES,PROGRAMMES,UK ATOMIC ENERGY AUTHORITY,490158,55778.14,GB570101391
BEIS,Met Office,2024-03-21,11 SERVICES,PROGRAMMES,UK ATOMIC ENERGY AUTHORITY,490159,70602.39,GB570101391
BEIS,Met Office,2024-03-21,11 SERVICES,PROGRAMMES,UK ATOMIC ENERGY AUTHORITY,490160,7675,GB570101391
BEIS,Met Office,2024-03-21,11 SERVICES,PROGRAMMES,UK ATOMIC ENERGY AUTHORITY,490161,15582,GB570101391
BEIS,Met Office,2024-03-21,11 SERVICES,PROGRAMMES,UK ATOMIC ENERGY AUTHORITY,490162,45000,GB570101391
BEIS,Met Office,2024-03-21,11 SERVICES,PROGRAMMES,UK ATOMIC ENERGY AUTHORITY,490163,129375,GB570101391
BEIS,Met Office,2024-03-21,11 SERVICES,PROGRAMMES,UK ATOMIC ENERGY AUTHORITY,490164,11074,GB570101391
BEIS,Met Office,2024-03-21,11 SERVICES,PROGRAMMES,UK ATOMIC ENERGY AUTHORITY,490170,3061,GB570101391
BEIS,Met Office,2024-03-21,11 SERVICES,PROGRAMMES,UK ATOMIC ENERGY AUTHORITY,490171,19843.94,GB570101391
BEIS,Met Office,2024-03-21,11 SERVICES,PROGRAMMES,UK ATOMIC ENERGY AUTHORITY,490172,75000,GB570101391
BEIS,Met Office,2024-03-21,11 SERVICES,PROGRAMMES,UK ATOMIC ENERGY AUTHORITY,490173,135000,GB570101391
BEIS,Met Office,2024-03-21,11 SERVICES,PROGRAMMES,UK ATOMIC ENERGY AUTHORITY,490174,15000,GB570101391
BEIS,Met Office,2024-03-21,11 SERVICES,PROGRAMMES,UK ATOMIC ENERGY AUTHORITY,490175,135000,GB570101391
BEIS,Met Office,2024-03-26,11 SERVICES,PROGRAMMES,UK ATOMIC ENERGY AUTHORITY,490443,12763.29,GB570101391
BEIS,Met Office,2024-03-26,11 SERVICES,PROGRAMMES,UK ATOMIC ENERGY AUTHORITY,490443,3920.71,GB570101391
BEIS,Met Office,2024-03-26,11 SERVICES,PROGRAMMES,UK ATOMIC ENERGY AUTHORITY,490444,18769,GB570101391
BEIS,Met Office,2024-03-26,11 SERVICES,PROGRAMMES,UK ATOMIC ENERGY AUTHORITY,490445,30642.06,GB570101391
BEIS,Met Office,2024-03-12,11 SERVICES,PROGRAMMES,UK CENTRE FOR ECOLOGY & HYDROLOGY (UKCEH),489710,5000,336940192
BEIS,Met Office,2024-03-14,11 SERVICES,PROGRAMMES,UK CENTRE FOR ECOLOGY & HYDROLOGY (UKCEH),489934,17726,336940192
BEIS,Met Office,2024-03-18,11 SERVICES,PROGRAMMES,UK CENTRE FOR ECOLOGY & HYDROLOGY (UKCEH),489983,1933,336940192
BEIS,Met Office,2024-03-19,11 SERVICES,MARKETS,UK CENTRE FOR ECOLOGY & HYDROLOGY (UKCEH),489984,17500,336940192
BEIS,Met Office,2024-03-15,11 SERVICES,MARKETS,UK CENTRE FOR ECOLOGY & HYDROLOGY (UKCEH),489985,10000,336940192
BEIS,Met Office,2024-03-19,11 SERVICES,MARKETS,UK CENTRE FOR ECOLOGY & HYDROLOGY (UKCEH),490037,32438,336940192
BEIS,Met Office,2024-03-26,11 SERVICES,PROGRAMMES,UK CENTRE FOR ECOLOGY & HYDROLOGY (UKCEH),490048,148000,336940192
BEIS,Met Office,2024-03-18,06 ACCOMMODATION,CHIEF FINANCIAL OFFICER,UK CENTRE FOR ECOLOGY & HYDROLOGY (UKCEH),490052,2772.65,336940192
BEIS,Met Office,2024-03-01,11 SERVICES,PROGRAMMES,Uk Hydrographic Office,414558,-6,888805264
BEIS,Met Office,2024-03-01,13 MISCELLANEOUS,CHIEF FINANCIAL OFFICER,Uk Hydrographic Office,489391,6,888805264
BEIS,Met Office,2024-03-12,11 SERVICES,SERVICES,UK TELEMATICS LIMITED,489797,57.75,GB763051643
BEIS,Met Office,2024-03-05,11 SERVICES,MARKETS,UNITED KINGDOM RESEARCH AND INNOVATION (UKRI),489426,3207.4,GB287461957
BEIS,Met Office,2024-03-05,06 ACCOMMODATION,CHIEF FINANCIAL OFFICER,UNIVERSAL CLEANING SERVICES,489343,165.73,-
BEIS,Met Office,2024-03-05,06 ACCOMMODATION,CHIEF FINANCIAL OFFICER,UNIVERSAL CLEANING SERVICES,489385,186.44,-
BEIS,Met Office,2024-03-05,06 ACCOMMODATION,CHIEF FINANCIAL OFFICER,UNIVERSAL CLEANING SERVICES,489386,165.73,-
BEIS,Met Office,2024-03-05,06 ACCOMMODATION,CHIEF FINANCIAL OFFICER,UNIVERSAL CLEANING SERVICES,489387,30.4,-
BEIS,Met Office,2024-03-05,06 ACCOMMODATION,CHIEF FINANCIAL OFFICER,UNIVERSAL CLEANING SERVICES,489387,156.04,-
BEIS,Met Office,2024-03-04,11 SERVICES,PROGRAMMES,University Of Birmingham,482081,64717,729856187
BEIS,Met Office,2024-03-04,11 SERVICES,PROGRAMMES,University Of Birmingham,482082,64717,729856187
BEIS,Met Office,2024-03-13,11 SERVICES,PROGRAMMES,University Of Birmingham,489327,65000,729856187
BEIS,Met Office,2024-03-06,11 SERVICES,PROGRAMMES,University Of Birmingham,489428,2583.98,729856187
BEIS,Met Office,2024-03-06,11 SERVICES,PROGRAMMES,University Of Birmingham,489428,29300,729856187
BEIS,Met Office,2024-03-13,11 SERVICES,PROGRAMMES,University Of Birmingham,489512,65000,729856187
BEIS,Met Office,2024-03-07,11 SERVICES,PROGRAMMES,University Of Birmingham,489630,47481.77,729856187
BEIS,Met Office,2024-03-13,11 SERVICES,PROGRAMMES,University Of Birmingham,489835,-65000,729856187
BEIS,Met Office,2024-03-14,11 SERVICES,PROGRAMMES,University Of Durham,489863,84200,GB6755 42510
BEIS,Met Office,2024-03-15,11 SERVICES,PROGRAMMES,University of Edinburgh,489936,25000,592950700
BEIS,Met Office,2024-03-22,11 SERVICES,PROGRAMMES,University of Edinburgh,490293,33333,592950700
BEIS,Met Office,2024-03-22,11 SERVICES,SCIENCE,University of Edinburgh,490294,12500,592950700
BEIS,Met Office,2024-03-26,11 SERVICES,PROGRAMMES,University of Edinburgh,490460,102540.8,592950700
BEIS,Met Office,2024-03-08,13 MISCELLANEOUS,SCIENCE,University Of Exeter,489529,500,142047795
BEIS,Met Office,2024-03-18,11 SERVICES,PROGRAMMES,University Of Exeter,490076,8560.54,142047795
BEIS,Met Office,2024-03-18,11 SERVICES,PROGRAMMES,University Of Exeter,490083,5580.57,142047795
BEIS,Met Office,2024-03-21,11 SERVICES,PROGRAMMES,University Of Leeds,479560,447309.66,613451470
BEIS,Met Office,2024-03-11,11 SERVICES,PROGRAMMES,University Of Leeds,485527,30000,613451470
BEIS,Met Office,2024-03-11,11 SERVICES,PROGRAMMES,University Of Leeds,488423,-23996.32,613451470
BEIS,Met Office,2024-03-21,11 SERVICES,PROGRAMMES,University Of Leeds,490124,-447309.66,613451470
BEIS,Met Office,2024-03-04,11 SERVICES,SERVICES,University Of Leicester,489384,4633.2,916583894
BEIS,Met Office,2024-03-07,13 MISCELLANEOUS,SCIENCE,University Of Oxford,489650,1000,125506730
BEIS,Met Office,2024-03-26,11 SERVICES,PROGRAMMES,University Of Reading,490465,49310.4,200012659
BEIS,Met Office,2024-03-26,11 SERVICES,PROGRAMMES,University Of Reading,490466,70857.67,200012659
BEIS,Met Office,2024-03-26,11 SERVICES,PROGRAMMES,University Of Reading,490467,24655.2,200012659
BEIS,Met Office,2024-03-27,11 SERVICES,PROGRAMMES,University Of Reading,490479,49310.4,200012659
BEIS,Met Office,2024-03-26,11 SERVICES,MARKETS,UNIVERSITY OF WORCESTER,490304,19200,100103412
BEIS,Met Office,2024-03-13,STOCK,SERVICES,VAISALA LTD,25625,0,336100011
BEIS,Met Office,2024-03-13,TRADE CREDITORS,SERVICES,VAISALA LTD,25625,8211.05,336100011
BEIS,Met Office,2024-03-20,STOCK,SERVICES,VAISALA LTD,25627,0,336100011
BEIS,Met Office,2024-03-20,TRADE CREDITORS,SERVICES,VAISALA LTD,25627,19598.62,336100011
BEIS,Met Office,2024-03-20,11 SERVICES,SERVICES,VAISALA LTD,25627,59.8,336100011
BEIS,Met Office,2024-03-27,STOCK,SERVICES,VAISALA LTD,25644,0,336100011
BEIS,Met Office,2024-03-27,STOCK,SERVICES,VAISALA LTD,25644,0,336100011
BEIS,Met Office,2024-03-27,TRADE CREDITORS,SERVICES,VAISALA LTD,25644,630.85,336100011
BEIS,Met Office,2024-03-27,TRADE CREDITORS,SERVICES,VAISALA LTD,25644,2355.01,336100011
BEIS,Met Office,2024-03-27,11 SERVICES,SERVICES,VAISALA LTD,25644,64.11,336100011
BEIS,Met Office,2024-03-27,07 EQUIPMENT,SERVICES,VAISALA LTD,25645,123.09,336100011
BEIS,Met Office,2024-03-27,07 EQUIPMENT,SERVICES,VAISALA LTD,25645,72.32,336100011
BEIS,Met Office,2024-03-27,07 EQUIPMENT,SERVICES,VAISALA LTD,25645,42.74,336100011
BEIS,Met Office,2024-03-27,07 EQUIPMENT,SERVICES,VAISALA LTD,25645,747.1,336100011
BEIS,Met Office,2024-03-27,07 EQUIPMENT,SERVICES,VAISALA LTD,25645,1704.84,336100011
BEIS,Met Office,2024-03-11,11 SERVICES,SERVICES,VAISALA LTD,489738,10793.52,336100011
BEIS,Met Office,2024-03-27,STOCK,SERVICES,Vaisala Oyj,25362,0,FI01244162
BEIS,Met Office,2024-03-27,TRADE CREDITORS,SERVICES,Vaisala Oyj,25362,51269.21,FI01244162
BEIS,Met Office,2024-03-27,11 SERVICES,SERVICES,Vaisala Oyj,25362,1134.27,FI01244162
BEIS,Met Office,2024-03-07,06 ACCOMMODATION,CHIEF FINANCIAL OFFICER,Valuation Office Agency,489633,400,888848141
BEIS,Met Office,2024-03-13,06 ACCOMMODATION,CHIEF FINANCIAL OFFICER,Valuation Office Agency,489930,700,888848141
BEIS,Met Office,2024-03-13,06 ACCOMMODATION,CHIEF FINANCIAL OFFICER,Valuation Office Agency,489930,600,888848141
BEIS,Met Office,2024-03-13,06 ACCOMMODATION,CHIEF FINANCIAL OFFICER,Valuation Office Agency,489930,700,888848141
BEIS,Met Office,2024-03-19,06 ACCOMMODATION,CHIEF FINANCIAL OFFICER,VICKERY HOLMAN,490092,4365.62,943875678
BEIS,Met Office,2024-03-19,11 SERVICES,CHIEF FINANCIAL OFFICER,VIRGIN MEDIA BUSINESS,489160,38400,591819014
BEIS,Met Office,2024-03-08,11 SERVICES,CHIEF FINANCIAL OFFICER,Vodafone Limited,489618,3893.09,569953277
BEIS,Met Office,2024-03-25,11 SERVICES,CHIEF FINANCIAL OFFICER,Vodafone Ltd,490343,37.5,569953277
BEIS,Met Office,2024-03-25,11 SERVICES,CHIEF FINANCIAL OFFICER,Vodafone Ltd,490344,37.5,569953277
BEIS,Met Office,2024-03-25,11 SERVICES,CHIEF FINANCIAL OFFICER,Vodafone Ltd,490345,37.5,569953277
BEIS,Met Office,2024-03-25,11 SERVICES,CHIEF FINANCIAL OFFICER,Vodafone Ltd,490346,37.5,569953277
BEIS,Met Office,2024-03-28,11 SERVICES,SERVICES,VOLKSWAGEN GROUP LEASING,490526,1,BG745963883
BEIS,Met Office,2024-03-28,11 SERVICES,SERVICES,VOLKSWAGEN GROUP LEASING,490526,212.27,BG745963883
BEIS,Met Office,2024-03-28,11 SERVICES,SERVICES,VOLKSWAGEN GROUP LEASING,490527,1,BG745963883
BEIS,Met Office,2024-03-28,11 SERVICES,SERVICES,VOLKSWAGEN GROUP LEASING,490527,288.9,BG745963883
BEIS,Met Office,2024-03-28,11 SERVICES,SERVICES,VOLKSWAGEN GROUP LEASING,490528,1,BG745963883
BEIS,Met Office,2024-03-28,11 SERVICES,SERVICES,VOLKSWAGEN GROUP LEASING,490528,259.65,BG745963883
BEIS,Met Office,2024-03-28,11 SERVICES,SERVICES,VOLKSWAGEN GROUP LEASING,490529,1,BG745963883
BEIS,Met Office,2024-03-28,11 SERVICES,SERVICES,VOLKSWAGEN GROUP LEASING,490529,229.85,BG745963883
BEIS,Met Office,2024-03-28,11 SERVICES,SERVICES,VOLKSWAGEN GROUP LEASING,490530,1,BG745963883
BEIS,Met Office,2024-03-28,11 SERVICES,SERVICES,VOLKSWAGEN GROUP LEASING,490530,194.57,BG745963883
BEIS,Met Office,2024-03-28,11 SERVICES,SERVICES,VOLKSWAGEN GROUP LEASING,490531,1,BG745963883
BEIS,Met Office,2024-03-28,11 SERVICES,SERVICES,VOLKSWAGEN GROUP LEASING,490531,259.26,BG745963883
BEIS,Met Office,2024-03-28,11 SERVICES,SERVICES,VOLKSWAGEN GROUP LEASING,490532,134.77,BG745963883
BEIS,Met Office,2024-03-28,11 SERVICES,SERVICES,VOLKSWAGEN GROUP LEASING,490533,134.61,BG745963883
BEIS,Met Office,2024-03-28,11 SERVICES,SERVICES,VOLKSWAGEN GROUP LEASING,490534,160.02,BG745963883
BEIS,Met Office,2024-03-28,11 SERVICES,SERVICES,VOLKSWAGEN GROUP LEASING,490535,248.12,BG745963883
BEIS,Met Office,2024-03-28,11 SERVICES,SERVICES,VOLKSWAGEN GROUP LEASING,490536,199.82,BG745963883
BEIS,Met Office,2024-03-28,11 SERVICES,SERVICES,VOLKSWAGEN GROUP LEASING,490537,131.05,BG745963883
BEIS,Met Office,2024-03-19,11 SERVICES,PROGRAMMES,WARWICK ECONOMICS & DEVELOPMENT LTD.,490079,23400,116732721
BEIS,Met Office,2024-03-21,06 ACCOMMODATION,CHIEF FINANCIAL OFFICER,Wealden District Council,490251,1322.35,210898561
BEIS,Met Office,2024-03-28,11 SERVICES,CHIEF FINANCIAL OFFICER,WEBEX COMMUNICATIONS UK LTD,490524,209.92,815974302
BEIS,Met Office,2024-03-15,06 ACCOMMODATION,CHIEF FINANCIAL OFFICER,WEST LANCASHIRE BOROUGH COUNCIL,486597,-3315.7,-
BEIS,Met Office,2024-03-18,06 ACCOMMODATION,CHIEF FINANCIAL OFFICER,WEST LANCASHIRE BOROUGH COUNCIL,487457,138.77,-
BEIS,Met Office,2024-03-25,06 ACCOMMODATION,CHIEF FINANCIAL OFFICER,WEST LANCASHIRE BOROUGH COUNCIL,490266,5364.25,-
BEIS,Met Office,2024-03-06,11 SERVICES,CHIEF FINANCIAL OFFICER,WESTEXE GROUP,489494,60,913 4460 43
BEIS,Met Office,2024-03-21,11 SERVICES,CHIEF FINANCIAL OFFICER,WESTEXE GROUP,490243,60,913 4460 43
BEIS,Met Office,2024-03-21,11 SERVICES,CHIEF FINANCIAL OFFICER,WESTEXE GROUP,490268,60,913 4460 43
BEIS,Met Office,2024-03-27,11 SERVICES,CHIEF FINANCIAL OFFICER,WESTEXE GROUP,490464,60,913 4460 43
BEIS,Met Office,2024-03-06,11 SERVICES,CHIEF FINANCIAL OFFICER,WESTFIELD HEALTH & WELLBEING LTD,489528,2000,229171411
BEIS,Met Office,2024-03-18,11 SERVICES,MARKETS,WESTPOINT CENTRE (DEVON) LTD,490031,2946,585 6015 25
BEIS,Met Office,2024-03-25,06 ACCOMMODATION,CHIEF FINANCIAL OFFICER,WILTSHIRE COUNCIL,490255,5648.18,-
BEIS,Met Office,2024-03-06,11 SERVICES,TECHNOLOGY AND CIO,WIREFAST LTD,489491,1592.62,749536001
BEIS,Met Office,2024-03-06,11 SERVICES,TECHNOLOGY AND CIO,WIREFAST LTD,489492,562.61,749536001
BEIS,Met Office,2024-03-06,11 SERVICES,TECHNOLOGY AND CIO,WIREFAST LTD,489493,1133.97,749536001
BEIS,Met Office,2024-03-14,06 ACCOMMODATION,CHIEF FINANCIAL OFFICER,WOKINGHAM BOROUGH COUNCIL,489911,13597.75,-
BEIS,Met Office,2024-03-14,06 ACCOMMODATION,CHIEF FINANCIAL OFFICER,WOKINGHAM BOROUGH COUNCIL,489912,3842.3,-
BEIS,Met Office,2024-03-14,06 ACCOMMODATION,CHIEF FINANCIAL OFFICER,WOKINGHAM BOROUGH COUNCIL,489913,1172.65,-
BEIS,Met Office,2024-03-04,11 SERVICES,CHIEF FINANCIAL OFFICER,WOMBLE BOND DICKINSON (UK) LLP,489352,15725,GB123393627
BEIS,Met Office,2024-03-04,11 SERVICES,CHIEF FINANCIAL OFFICER,WOMBLE BOND DICKINSON (UK) LLP,489353,3164,GB123393627
BEIS,Met Office,2024-03-26,12 INTERNATIONAL,MARKETS,WORLD METEOROLOGICAL ORGANIZATION,478914,748.06,-
BEIS,Met Office,2024-03-26,12 INTERNATIONAL,MARKETS,WORLD METEOROLOGICAL ORGANIZATION,490427,100000,-
BEIS,Met Office,2024-03-15,11 SERVICES,MARKETS,WORLDPAY (UK) LTD,489917,608.21,991280207
BEIS,Met Office,2024-03-06,11 SERVICES,MARKETS,WORLDPAY LTD,489419,26.65,991280207
BEIS,Met Office,2024-03-15,08 SOFTWARE LICENCES,SERVICES,Written Byte Ltd,489986,35082.05,GB 98896503
BEIS,Met Office,2024-03-18,05 CONSULTANTS,CHIEF FINANCIAL OFFICER,WT CONSULTANCY (SW) LTD,488304,1050,223 4662 25
BEIS,Met Office,2024-03-18,05 CONSULTANTS,PROGRAMMES,WT CONSULTANCY (SW) LTD,489323,2250,223 4662 25
BEIS,Met Office,2024-03-28,11 SERVICES,CHIEF FINANCIAL OFFICER,WT CONSULTANCY (SW) LTD,489324,18650,223 4662 25
BEIS,Met Office,2024-03-04,11 SERVICES,TECHNOLOGY AND CIO,WT CONSULTANCY (SW) LTD,489325,1050,223 4662 25
BEIS,Met Office,2024-03-21,06 ACCOMMODATION,CHIEF FINANCIAL OFFICER,WYCHAVON DISTRICT COUNCIL,490261,3573.34,-
BEIS,Met Office,2024-03-07,06 ACCOMMODATION,CHIEF FINANCIAL OFFICER,XEIAD,483147,3484.42,811321091
BEIS,Met Office,2024-03-07,06 ACCOMMODATION,CHIEF FINANCIAL OFFICER,XEIAD,483147,3856.02,811321091
BEIS,Met Office,2024-03-11,06 ACCOMMODATION,CHIEF FINANCIAL OFFICER,XEIAD,489735,1783.55,811321091
BEIS,Met Office,2024-03-11,06 ACCOMMODATION,CHIEF FINANCIAL OFFICER,XEIAD,489736,4719.55,811321091
BEIS,Met Office,2024-03-19,11 SERVICES,CHIEF FINANCIAL OFFICER,XEIAD,490091,1722.64,811321091
BEIS,Met Office,2024-03-20,FIXTURE & FITTINGS,SERVICES,XEIAD,490202,3180.09,811321091
BEIS,Met Office,2024-03-22,06 ACCOMMODATION,CHIEF FINANCIAL OFFICER,XEIAD,490205,392,811321091
BEIS,Met Office,2024-03-22,06 ACCOMMODATION,CHIEF FINANCIAL OFFICER,XEIAD,490205,675,811321091
BEIS,Met Office,2024-03-22,06 ACCOMMODATION,CHIEF FINANCIAL OFFICER,XEIAD,490205,186,811321091
BEIS,Met Office,2024-03-22,06 ACCOMMODATION,CHIEF FINANCIAL OFFICER,XEIAD,490300,-392,811321091
BEIS,Met Office,2024-03-22,06 ACCOMMODATION,CHIEF FINANCIAL OFFICER,XEIAD,490300,-675,811321091
BEIS,Met Office,2024-03-22,06 ACCOMMODATION,CHIEF FINANCIAL OFFICER,XEIAD,490300,-186,811321091
BEIS,Met Office,2024-03-22,06 ACCOMMODATION,CHIEF FINANCIAL OFFICER,XEIAD,490319,3380.08,811321091
BEIS,Met Office,2024-03-22,06 ACCOMMODATION,CHIEF FINANCIAL OFFICER,XEIAD,490319,4471.65,811321091
BEIS,Met Office,2024-03-07,13 MISCELLANEOUS,PEOPLE,YOTI LTD,489634,12.6,GB199947617
BEIS,Met Office,2024-03-07,11 SERVICES,MARKETS,YOUGOV PLC,485208,14300,991228109
BEIS,Met Office,2024-03-07,11 SERVICES,MARKETS,YOUGOV PLC,487691,-14300,991228109
BEIS,Met Office,2024-03-06,11 SERVICES,PEOPLE,YOUGOV PLC,488480,4530,991228109
BEIS,Met Office,2024-03-07,11 SERVICES,MARKETS,YOUGOV PLC,489326,14300,991228109
BEIS,Met Office,2024-03-11,10 EQUIPMENT MAINTENANCE,SERVICES,YOUNG CALIBRATION LIMITED,489737,4500,673900720
BEIS,Met Office,2024-03-11,13 MISCELLANEOUS,SERVICES,YOUNG CALIBRATION LIMITED,489737,25,673900720
